Workbook

Sheet Hand Data
A1: M3 Eagle Hand Measured Water Levels for the Second-Half of 2018
A2: Hydro Logic Inc.
A4: M3 Eagle Test Well #1 | E4: M3 Eagle Test Well #2 | H4: M3 Eagle Test Well #3 | K4: M3 Eagle Test Well #4 | O4: M3 Eagle S.V.R. Well #7 | R4: M3 Eagle S.V.R. Well #9
A6: measuring point (mp) = 3.2' above ground level | E6: measuring point (mp) = 3.2' above ground level | H6: measuring point (mp) = 3.5' above ground level | K6: measuring point (mp) = 4.20' above ground level (after 3-10-2008) = 4.57' above ground level (after 8-3-2016) = 2.16' above ground level (after 4-28-2017) (Note: All water levels have been compensated to original datum of 4.2' above ground level) | O6: measuring point (mp) = 5.5' above ground level | R6: measuring point (mp) = 1.8' above ground level
A7: Date & Time (24-hour) | B7: Zone #3 Water Level (feet bmp) | C7: Zone #5 Water Level (feet bmp) | D7: Comments | E7: Date & Time (24-hour) | F7: Zone #1 Water Level (feet bmp) | G7: Comments | H7: Date & Time (24-hour) | I7: Zone #4 Water Level (feet bmp) | J7: Comments | K7: Date & Time (24-hour) | L7: Zone #2 Water Level (feet bmp) | M7: Zone #3 Water Level (feet bmp) | N7: Comments | O7: Date & Time (24-hour) | P7: Water Level (feet bmp) | Q7: Comments | R7: Date & Time (24-hour) | S7: Water Level (feet bmp) | T7: Comments
A8: 2017-12-11T10:21:00 | B8: 92.74 | C8: 91.39 | D8: T.W. 300' tape | E8: 2017-12-11T12:08:00 | F8: 221.55 | G8: T.W. 300' tape | H8: 2017-12-11T09:50:00 | I8: 267.47 | J8: T.W. 300' tape | K8: 2017-12-11T11:03:00 | L8: 133.43 | M8: 137.96 | N8: T.W. 300' tape; compensated to original mp | O8: 2017-12-11T11:45:00 | P8: 169.39 | Q8: T.W. 300' tape | R8: 2017-12-11T12:49:00 | S8: 201.31 | T8: T.W. 750' tape
A9: 2018-01-04T11:22:00 | B9: 92.02 | C9: 90.66 | D9: T.W. 300' tape | E9: 2018-01-04T13:24:00 | F9: 221.14 | G9: T.W. 300' tape | H9: 2018-01-04T10:51:00 | I9: 266.92 | J9: T.W. 300' tape | K9: 2018-01-04T12:15:00 | L9: 132.78 | M9: 136.85 | N9: T.W. 300' tape; compensated to original mp | O9: 2018-01-04T12:58:00 | P9: 168.77 | Q9: T.W. 300' tape | R9: 2018-01-04T14:24:00 | S9: 200.83 | T9: T.W. 750' tape
A10: 2018-02-14T11:01:00 | B10: 92.71 | C10: 90.01 | D10: T.W. 300' tape | E10: 2018-02-14T13:04:00 | F10: 220.93 | G10: T.W. 300' tape | H10: 2018-02-14T10:14:00 | I10: 266.62 | J10: T.W. 300' tape | K10: 2018-02-14T12:15:00 | L10: 132.89 | M10: 137.32 | N10: T.W. 300' tape; compensated to original mp | O10: 2018-02-14T12:44:00 | P10: 168.48 | Q10: T.W. 300' tape | R10: 2018-02-14T14:10:00 | S10: 200.49 | T10: T.W. 500' tape
A11: 2018-03-09T11:00:00 | B11: 92.92 | C11: 89.89 | D11: T.W. 300' tape | E11: 2018-03-09T12:44:00 | F11: 220.93 | G11: T.W. 300' tape | H11: 2018-03-09T10:29:00 | I11: 266.6 | J11: T.W. 300' tape | K11: 2018-03-09T11:45:00 | L11: 132.99 | M11: 137.25 | N11: T.W. 300' tape; compensated to original mp | O11: 2018-03-09T12:22:00 | P11: 168.68 | Q11: T.W. 300' tape | R11: 2018-03-09T13:32:00 | S11: 200.5 | T11: T.W. 300' tape
A12: 2018-06-25T13:02:00 | B12: 108.01 | C12: 91.32 | D12: T.W. 300' tape | E12: 2018-06-25T15:50:00 | F12: 220.92 | G12: T.W. 300' tape | H12: 2018-06-25T12:19:00 | I12: 267.21 | J12: T.W. 300' tape | K12: 2018-06-25T13:39:00 | L12: 134.1 | M12: 137.67 | N12: T.W. 300' tape; compensated to original mp; logger failed in Zone #2 and was replaced | O12: 2018-06-25T15:21:00 | P12: 169.21 | Q12: T.W. 300' tape; logger failed and was replaced | R12: 2018-06-25T16:41:00 | S12: 200.54 | T12: T.W. 300' tape
A13: 2018-11-20T09:47:00 | B13: 96.04 | C13: 91.86 | D13: T.W. 300' tape | E13: 2018-11-20T12:47:00 | F13: 221.38 | G13: T.W. 300' tape | H13: 2018-11-20T09:08:00 | I13: 267.78 | J13: T.W. 300' tape | K13: 2018-11-20T11:09:00 | L13: 133.76 | M13: 138.37 | N13: T.W. 300' tape; compensated to original mp | O13: 2018-11-20T12:21:00 | P13: 169.48 | Q13: T.W. 300' tape | R13: 2018-11-20T14:23:00 | S13: 201.32 | T13: T.W. 300' tape
A14: 2018-12-31T12:28:00 | B14: 94.76 | C14: 91.31 | D14: T.W. 300' tape | E14: 2018-12-31T13:48:00 | F14: 221.43 | G14: T.W. 300' tape | H14: 2018-12-31T12:05:00 | I14: 267.49 | J14: T.W. 300' tape | K14: 2018-12-31T12:56:00 | L14: 133.64 | M14: 137.93 | N14: T.W. 300' tape; compensated to original mp | O14: 2018-12-31T12:22:00 | P14: 169.44 | Q14: T.W. 300' tape | R14: 2018-12-31T14:20:00 | S14: 201.32 | T14: T.W. 300' tape

Sheet Barologger Data
A1: Barologger Data from On-Site Logger
A2: Date and Time (24-hour) | B2: Barometric Pressure (feet of water)
A3: 2017-12-01 | B3: 31.14665
A4: 2017-12-01T12:00:00 | B4: 31.08596
A5: 2017-12-02 | B5: 30.97687
A6: 2017-12-02T12:00:00 | B6: 30.92192
A7: 2017-12-03 | B7: 30.68488
A8: 2017-12-03T12:00:00 | B8: 30.77428
A9: 2017-12-04 | B9: 31.14091
A10: 2017-12-04T12:00:00 | B10: 31.32628
A11: 2017-12-05 | B11: 31.39846
A12: 2017-12-05T12:00:00 | B12: 31.53789
A13: 2017-12-06 | B13: 31.55922
A14: 2017-12-06T12:00:00 | B14: 31.70194
A15: 2017-12-07 | B15: 31.67897
A16: 2017-12-07T12:00:00 | B16: 31.70358
A17: 2017-12-08 | B17: 31.69209
A18: 2017-12-08T12:00:00 | B18: 31.69045
A19: 2017-12-09 | B19: 31.66913
A20: 2017-12-09T12:00:00 | B20: 31.68225
A21: 2017-12-10 | B21: 31.68471
A22: 2017-12-10T12:00:00 | B22: 31.67323
A23: 2017-12-11 | B23: 31.62238
A24: 2017-12-11T12:00:00 | B24: 31.6519
A25: 2017-12-12 | B25: 31.6396
A26: 2017-12-12T12:00:00 | B26: 31.61745
A27: 2017-12-13 | B27: 31.46325
A28: 2017-12-13T12:00:00 | B28: 31.37303
A29: 2017-12-14 | B29: 31.41732
A30: 2017-12-14T12:00:00 | B30: 31.52641
A31: 2017-12-15 | B31: 31.39272
A32: 2017-12-15T12:00:00 | B32: 31.22867
A33: 2017-12-16 | B33: 31.04331
A34: 2017-12-16T12:00:00 | B34: 31.04905
A35: 2017-12-17 | B35: 31.14091
A36: 2017-12-17T12:00:00 | B36: 31.18684
A37: 2017-12-18 | B37: 31.15978
A38: 2017-12-18T12:00:00 | B38: 31.15075
A39: 2017-12-19 | B39: 31.06627
A40: 2017-12-19T12:00:00 | B40: 30.89075
A41: 2017-12-20 | B41: 30.58481
A42: 2017-12-20T12:00:00 | B42: 30.89075
A43: 2017-12-21 | B43: 31.10072
A44: 2017-12-21T12:00:00 | B44: 31.26722
A45: 2017-12-22 | B45: 31.16388
A46: 2017-12-22T12:00:00 | B46: 31.09334
A47: 2017-12-23 | B47: 31.07448
A48: 2017-12-23T12:00:00 | B48: 31.20407
A49: 2017-12-24 | B49: 31.38862
A50: 2017-12-24T12:00:00 | B50: 31.30331
A51: 2017-12-25 | B51: 31.13927
A52: 2017-12-25T12:00:00 | B52: 31.12943
A53: 2017-12-26 | B53: 31.18274
A54: 2017-12-26T12:00:00 | B54: 31.27461
A55: 2017-12-27 | B55: 31.22129
A56: 2017-12-27T12:00:00 | B56: 31.26148
A57: 2017-12-28 | B57: 31.27625
A58: 2017-12-28T12:00:00 | B58: 31.22867
A59: 2017-12-29 | B59: 31.08596
A60: 2017-12-29T12:00:00 | B60: 31.0835
A61: 2017-12-30 | B61: 30.93094
A62: 2017-12-30T12:00:00 | B62: 31.07448
A63: 2017-12-31 | B63: 31.17536
A64: 2017-12-31T12:00:00 | B64: 31.27051
A65: 2018-01-01 | B65: 31.26886
A66: 2018-01-01T12:00:00 | B66: 31.36975
A67: 2018-01-02 | B67: 31.4001
A68: 2018-01-02T12:00:00 | B68: 31.4936
A69: 2018-01-03 | B69: 31.36729
A70: 2018-01-03T12:00:00 | B70: 31.26722
A71: 2018-01-04 | B71: 31.19997
A72: 2018-01-04T12:00:00 | B72: 31.1729
A73: 2018-01-05 | B73: 31.15404
A74: 2018-01-05T12:00:00 | B74: 31.177
A75: 2018-01-06 | B75: 31.08596
A76: 2018-01-06T12:00:00 | B76: 31.1081
A77: 2018-01-07 | B77: 31.12369
A78: 2018-01-07T12:00:00 | B78: 31.12779
A79: 2018-01-08 | B79: 30.98835
A80: 2018-01-08T12:00:00 | B80: 30.87352
A81: 2018-01-09 | B81: 30.69636
A82: 2018-01-09T12:00:00 | B82: 30.53396
A83: 2018-01-10 | B83: 30.56759
A84: 2018-01-10T12:00:00 | B84: 30.87927
A85: 2018-01-11 | B85: 31.02608
A86: 2018-01-11T12:00:00 | B86: 30.98835
A87: 2018-01-12 | B87: 30.96539
A88: 2018-01-12T12:00:00 | B88: 31.27461
A89: 2018-01-13 | B89: 31.34268
A90: 2018-01-13T12:00:00 | B90: 31.41732
A91: 2018-01-14 | B91: 31.4001
A92: 2018-01-14T12:00:00 | B92: 31.35991
A93: 2018-01-15 | B93: 31.2459
A94: 2018-01-15T12:00:00 | B94: 31.23442
A95: 2018-01-16 | B95: 31.12533
A96: 2018-01-16T12:00:00 | B96: 31.26312
A97: 2018-01-17 | B97: 31.26886
A98: 2018-01-17T12:00:00 | B98: 31.28609
A99: 2018-01-18 | B99: 31.00558
A100: 2018-01-18T12:00:00 | B100: 30.75951
A101: 2018-01-19 | B101: 30.72507
A102: 2018-01-19T12:00:00 | B102: 30.84482
A103: 2018-01-20 | B103: 30.90797
A104: 2018-01-20T12:00:00 | B104: 30.97113
A105: 2018-01-21 | B105: 31.05725
A106: 2018-01-21T12:00:00 | B106: 31.14255
A107: 2018-01-22 | B107: 31.08596
A108: 2018-01-22T12:00:00 | B108: 31.14255
A109: 2018-01-23 | B109: 31.23442
A110: 2018-01-23T12:00:00 | B110: 31.19423
A111: 2018-01-24 | B111: 30.99409
A112: 2018-01-24T12:00:00 | B112: 30.83415
A113: 2018-01-25 | B113: 30.63894
A114: 2018-01-25T12:00:00 | B114: 30.72835
A115: 2018-01-26 | B115: 30.90223
A116: 2018-01-26T12:00:00 | B116: 31.13681
A117: 2018-01-27 | B117: 31.14829
A118: 2018-01-27T12:00:00 | B118: 31.20161
A119: 2018-01-28 | B119: 31.31234
A120: 2018-01-28T12:00:00 | B120: 31.45751
A121: 2018-01-29 | B121: 31.40584
A122: 2018-01-29T12:00:00 | B122: 31.27461
A123: 2018-01-30 | B123: 30.95636
A124: 2018-01-30T12:00:00 | B124: 30.87352
A125: 2018-01-31 | B125: 31.02854
A126: 2018-01-31T12:00:00 | B126: 31.09334
A127: 2018-02-01 | B127: 31.11795
A128: 2018-02-01T12:00:00 | B128: 31.19012
A129: 2018-02-02 | B129: 31.15978
A130: 2018-02-02T12:00:00 | B130: 31.18848
A131: 2018-02-03 | B131: 31.1081
A132: 2018-02-03T12:00:00 | B132: 31.11385
A133: 2018-02-04 | B133: 31.09662
A134: 2018-02-04T12:00:00 | B134: 31.06873
A135: 2018-02-05 | B135: 30.94488
A136: 2018-02-05T12:00:00 | B136: 30.96539
A137: 2018-02-06 | B137: 30.96211
A138: 2018-02-06T12:00:00 | B138: 31.18274
A139: 2018-02-07 | B139: 31.2459
A140: 2018-02-07T12:00:00 | B140: 31.32054
A141: 2018-02-08 | B141: 31.24754
A142: 2018-02-08T12:00:00 | B142: 31.1081
A143: 2018-02-09 | B143: 30.92766
A144: 2018-02-09T12:00:00 | B144: 30.97933
A145: 2018-02-10 | B145: 30.88173
A146: 2018-02-10T12:00:00 | B146: 31.11385
A147: 2018-02-11 | B147: 31.05151
A148: 2018-02-11T12:00:00 | B148: 30.69062
A149: 2018-02-12 | B149: 30.6332
A150: 2018-02-12T12:00:00 | B150: 30.81857
A151: 2018-02-13 | B151: 31.08022
A152: 2018-02-13T12:00:00 | B152: 31.25738
A153: 2018-02-14 | B153: 31.05151
A154: 2018-02-14T12:00:00 | B154: 30.91946
A155: 2018-02-15 | B155: 30.98835
A156: 2018-02-15T12:00:00 | B156: 31.28773
A157: 2018-02-16 | B157: 31.32382
A158: 2018-02-16T12:00:00 | B158: 31.18274
A159: 2018-02-17 | B159: 31.09334
A160: 2018-02-17T12:00:00 | B160: 30.89649
A161: 2018-02-18 | B161: 30.51345
A162: 2018-02-18T12:00:00 | B162: 30.4872
A163: 2018-02-19 | B163: 30.53314
A164: 2018-02-19T12:00:00 | B164: 30.70784
A165: 2018-02-20 | B165: 30.93914
A166: 2018-02-20T12:00:00 | B166: 31.10482
A167: 2018-02-21 | B167: 31.08022
A168: 2018-02-21T12:00:00 | B168: 31.10482
A169: 2018-02-22 | B169: 30.92848
A170: 2018-02-22T12:00:00 | B170: 30.9334
A171: 2018-02-23 | B171: 31.05151
A172: 2018-02-23T12:00:00 | B172: 31.23852
A173: 2018-02-24 | B173: 31.12533
A174: 2018-02-24T12:00:00 | B174: 30.85302
A175: 2018-02-25 | B175: 31.05315
A176: 2018-02-25T12:00:00 | B176: 31.03757
A177: 2018-02-26 | B177: 30.71358
A178: 2018-02-26T12:00:00 | B178: 30.8399
A179: 2018-02-27 | B179: 30.95062
A180: 2018-02-27T12:00:00 | B180: 31.06299
A181: 2018-02-28 | B181: 31.00558
A182: 2018-02-28T12:00:00 | B182: 30.98835
A183: 2018-03-01 | B183: 30.82267
A184: 2018-03-01T12:00:00 | B184: 30.62992
A185: 2018-03-02 | B185: 30.43061
A186: 2018-03-02T12:00:00 | B186: 30.70784
A187: 2018-03-03 | B187: 30.72178
A188: 2018-03-03T12:00:00 | B188: 30.78494
A189: 2018-03-04 | B189: 30.84154
A190: 2018-03-04T12:00:00 | B190: 31.03428
A191: 2018-03-05 | B191: 31.1729
A192: 2018-03-05T12:00:00 | B192: 31.27461
A193: 2018-03-06 | B193: 31.21555
A194: 2018-03-06T12:00:00 | B194: 31.25328
A195: 2018-03-07 | B195: 31.17864
A196: 2018-03-07T12:00:00 | B196: 31.11631
A197: 2018-03-08 | B197: 30.9252
A198: 2018-03-08T12:00:00 | B198: 30.88747
A199: 2018-03-09 | B199: 30.81283
A200: 2018-03-09T12:00:00 | B200: 30.82021
... 532 more rows

Sheet Logger Table
A1: Monitored Well and/or Zone # | B1: Brand | C1: Type | D1: Serial Number | E1: Date Installed
A2: Test Well #1 | B2: Van Essen | C2: Baro-Diver | D2: U0641 | E2: 2015-06-08
A3: Test Well #1 Zone 3 | B3: Van Essen | C3: 20 meter Micro-Diver | D3: T2052 | E3: 2015-06-08
A4: Test Well #1 Zone 5 | B4: Van Essen | C4: 20 meter Micro-Diver | D4: P9772 | E4: 2014-09-05
A5: Test Well #2 Zone 1 | B5: Van Essen | C5: 20 meter Micro-Diver | D5: T2056 | E5: 2015-06-08
A6: Test Well #3 Zone 4 | B6: Van Essen | C6: 20 meter Micro-Diver | D6: S3123 | E6: 2016-09-07
A7: Test Well #4 Zone 2 | B7: Solinst | C7: 20 meter Gold | D7: 1044980 | E7: 2018-06-25
A8: Test Well #4 Zone 3 | B8: Van Essen | C8: 20 meter Micro-Diver | D8: T2059 | E8: 2015-06-08
A9: SVR #7 | B9: Solinst | C9: 100 meter Gold | D9: 1026558 | E9: 2018-06-25
A10: SVR #9 | B10: Van Essen | C10: 20 meter Micro-Diver | D10: R2279 | E10: 2014-06-23

Sheet Test Well #1 Zone 3
A1: Test Well #1 Zone 3
A2: Date and Time (24-hour) | B2: Absolute Pressure Above Logger (feet of water) | C2: Barometric Pressure from On-Site Logger (feet of water) | D2: Barometric Compensation (feet of water)
A3: 2017-12-01 | B3: 84.45976 | C3: 31.14665 | D3: 53.31311
A4: 2017-12-01T12:00:00 | B4: 84.49584 | C4: 31.08596 | D4: 53.40988
A5: 2017-12-02 | B5: 84.21315 | C5: 30.97687 | D5: 53.23628
A6: 2017-12-02T12:00:00 | B6: 84.31239 | C6: 30.92192 | D6: 53.39047
A7: 2017-12-03 | B7: 84.21315 | C7: 30.68488 | D7: 53.52827
A8: 2017-12-03T12:00:00 | B8: 84.36652 | C8: 30.77428 | D8: 53.59224
A9: 2017-12-04 | B9: 84.41164 | C9: 31.14091 | D9: 53.27073
A10: 2017-12-04T12:00:00 | B10: 84.69734 | C10: 31.32628 | D10: 53.37106
A11: 2017-12-05 | B11: 84.80561 | C11: 31.39846 | D11: 53.40715
A12: 2017-12-05T12:00:00 | B12: 84.7605 | C12: 31.53789 | D12: 53.22261
A13: 2017-12-06 | B13: 84.86275 | C13: 31.55922 | D13: 53.30353
A14: 2017-12-06T12:00:00 | B14: 85.09132 | C14: 31.70194 | D14: 53.38938
A15: 2017-12-07 | B15: 84.86275 | C15: 31.67897 | D15: 53.18378
A16: 2017-12-07T12:00:00 | B16: 85.01613 | C16: 31.70358 | D16: 53.31255
A17: 2017-12-08 | B17: 85.10034 | C17: 31.69209 | D17: 53.40825
A18: 2017-12-08T12:00:00 | B18: 84.92591 | C18: 31.69045 | D18: 53.23546
A19: 2017-12-09 | B19: 85.02515 | C19: 31.66913 | D19: 53.35602
A20: 2017-12-09T12:00:00 | B20: 85.15447 | C20: 31.68225 | D20: 53.47222
A21: 2017-12-10 | B21: 84.94395 | C21: 31.68471 | D21: 53.25924
A22: 2017-12-10T12:00:00 | B22: 85.07026 | C22: 31.67323 | D22: 53.39703
A23: 2017-12-11 | B23: 85.10034 | C23: 31.62238 | D23: 53.47796
A24: 2017-12-11T12:00:00 | B24: 84.962 | C24: 31.6519 | D24: 53.3101
A25: 2017-12-12 | B25: 85.06124 | C25: 31.6396 | D25: 53.42164
A26: 2017-12-12T12:00:00 | B26: 85.00711 | C26: 31.61745 | D26: 53.38966
A27: 2017-12-13 | B27: 84.92591 | C27: 31.46325 | D27: 53.46266
A28: 2017-12-13T12:00:00 | B28: 84.962 | C28: 31.37303 | D28: 53.58897
A29: 2017-12-14 | B29: 84.80561 | C29: 31.41732 | D29: 53.38829
A30: 2017-12-14T12:00:00 | B30: 84.98004 | C30: 31.52641 | D30: 53.45363
A31: 2017-12-15 | B31: 84.98004 | C31: 31.39272 | D31: 53.58732
A32: 2017-12-15T12:00:00 | B32: 84.72441 | C32: 31.22867 | D32: 53.49574
A33: 2017-12-16 | B33: 84.64321 | C33: 31.04331 | D33: 53.5999
A34: 2017-12-16T12:00:00 | B34: 84.76952 | C34: 31.04905 | D34: 53.72047
A35: 2017-12-17 | B35: 84.64321 | C35: 31.14091 | D35: 53.5023
A36: 2017-12-17T12:00:00 | B36: 84.79659 | C36: 31.18684 | D36: 53.60975
A37: 2017-12-18 | B37: 84.87177 | C37: 31.15978 | D37: 53.71199
A38: 2017-12-18T12:00:00 | B38: 84.70636 | C38: 31.15075 | D38: 53.55561
A39: 2017-12-19 | B39: 84.74245 | C39: 31.06627 | D39: 53.67618
A40: 2017-12-19T12:00:00 | B40: 84.73343 | C40: 30.89075 | D40: 53.84268
A41: 2017-12-20 | B41: 84.30337 | C41: 30.58481 | D41: 53.71856
A42: 2017-12-20T12:00:00 | B42: 84.6793 | C42: 30.89075 | D42: 53.78855
A43: 2017-12-21 | B43: 84.75148 | C43: 31.10072 | D43: 53.65076
A44: 2017-12-21T12:00:00 | B44: 84.87177 | C44: 31.26722 | D44: 53.60455
A45: 2017-12-22 | B45: 84.91689 | C45: 31.16388 | D45: 53.75301
A46: 2017-12-22T12:00:00 | B46: 84.81463 | C46: 31.09334 | D46: 53.72129
A47: 2017-12-23 | B47: 84.7605 | C47: 31.07448 | D47: 53.68602
A48: 2017-12-23T12:00:00 | B48: 84.99809 | C48: 31.20407 | D48: 53.79402
A49: 2017-12-24 | B49: 84.93493 | C49: 31.38862 | D49: 53.54631
A50: 2017-12-24T12:00:00 | B50: 85.00711 | C50: 31.30331 | D50: 53.7038
A51: 2017-12-25 | B51: 84.90786 | C51: 31.13927 | D51: 53.76859
A52: 2017-12-25T12:00:00 | B52: 84.85373 | C52: 31.12943 | D52: 53.7243
A53: 2017-12-26 | B53: 85.01613 | C53: 31.18274 | D53: 53.83339
A54: 2017-12-26T12:00:00 | B54: 85.01613 | C54: 31.27461 | D54: 53.74152
A55: 2017-12-27 | B55: 84.962 | C55: 31.22129 | D55: 53.74071
A56: 2017-12-27T12:00:00 | B56: 85.12741 | C56: 31.26148 | D56: 53.86593
A57: 2017-12-28 | B57: 84.95297 | C57: 31.27625 | D57: 53.67672
A58: 2017-12-28T12:00:00 | B58: 85.00711 | C58: 31.22867 | D58: 53.77844
A59: 2017-12-29 | B59: 84.91689 | C59: 31.08596 | D59: 53.83093
A60: 2017-12-29T12:00:00 | B60: 84.98004 | C60: 31.0835 | D60: 53.89654
A61: 2017-12-30 | B61: 84.95297 | C61: 30.93094 | D61: 54.02203
A62: 2017-12-30T12:00:00 | B62: 85.00711 | C62: 31.07448 | D62: 53.93263
A63: 2017-12-31 | B63: 85.02515 | C63: 31.17536 | D63: 53.84979
A64: 2017-12-31T12:00:00 | B64: 85.2447 | C64: 31.27051 | D64: 53.97419
A65: 2018-01-01 | B65: 85.00711 | C65: 31.26886 | D65: 53.73825
A66: 2018-01-01T12:00:00 | B66: 85.25372 | C66: 31.36975 | D66: 53.88397
A67: 2018-01-02 | B67: 85.3289 | C67: 31.4001 | D67: 53.9288
A68: 2018-01-02T12:00:00 | B68: 85.28079 | C68: 31.4936 | D68: 53.78719
A69: 2018-01-03 | B69: 85.30184 | C69: 31.36729 | D69: 53.93455
A70: 2018-01-03T12:00:00 | B70: 85.33793 | C70: 31.26722 | D70: 54.07071
A71: 2018-01-04 | B71: 85.09132 | C71: 31.19997 | D71: 53.89135
A72: 2018-01-04T12:00:00 | B72: 85.15447 | C72: 31.1729 | D72: 53.98157
A73: 2018-01-05 | B73: 85.19056 | C73: 31.15404 | D73: 54.03652
A74: 2018-01-05T12:00:00 | B74: 85.31988 | C74: 31.177 | D74: 54.14288
A75: 2018-01-06 | B75: 85.03418 | C75: 31.08596 | D75: 53.94822
A76: 2018-01-06T12:00:00 | B76: 85.19056 | C76: 31.1081 | D76: 54.08246
A77: 2018-01-07 | B77: 85.12741 | C77: 31.12369 | D77: 54.00372
A78: 2018-01-07T12:00:00 | B78: 85.14545 | C78: 31.12779 | D78: 54.01766
A79: 2018-01-08 | B79: 85.15447 | C79: 30.98835 | D79: 54.16612
A80: 2018-01-08T12:00:00 | B80: 84.93493 | C80: 30.87352 | D80: 54.06141
A81: 2018-01-09 | B81: 84.85072 | C81: 30.69636 | D81: 54.15436
A82: 2018-01-09T12:00:00 | B82: 84.85974 | C82: 30.53396 | D82: 54.32578
A83: 2018-01-10 | B83: 84.70636 | C83: 30.56759 | D83: 54.13877
A84: 2018-01-10T12:00:00 | B84: 85.05222 | C84: 30.87927 | D84: 54.17295
A85: 2018-01-11 | B85: 85.25372 | C85: 31.02608 | D85: 54.22764
A86: 2018-01-11T12:00:00 | B86: 85.06124 | C86: 30.98835 | D86: 54.07289
A87: 2018-01-12 | B87: 85.14545 | C87: 30.96539 | D87: 54.18006
A88: 2018-01-12T12:00:00 | B88: 85.49131 | C88: 31.27461 | D88: 54.2167
A89: 2018-01-13 | B89: 85.31086 | C89: 31.34268 | D89: 53.96818
A90: 2018-01-13T12:00:00 | B90: 85.51236 | C90: 31.41732 | D90: 54.09504
A91: 2018-01-14 | B91: 85.57551 | C91: 31.4001 | D91: 54.17541
A92: 2018-01-14T12:00:00 | B92: 85.37402 | C92: 31.35991 | D92: 54.01411
A93: 2018-01-15 | B93: 85.40108 | C93: 31.2459 | D93: 54.15518
A94: 2018-01-15T12:00:00 | B94: 85.51236 | C94: 31.23442 | D94: 54.27794
A95: 2018-01-16 | B95: 85.20861 | C95: 31.12533 | D95: 54.08328
A96: 2018-01-16T12:00:00 | B96: 85.47326 | C96: 31.26312 | D96: 54.21014
A97: 2018-01-17 | B97: 85.49131 | C97: 31.26886 | D97: 54.22245
A98: 2018-01-17T12:00:00 | B98: 85.38304 | C98: 31.28609 | D98: 54.09695
A99: 2018-01-18 | B99: 85.26274 | C99: 31.00558 | D99: 54.25716
A100: 2018-01-18T12:00:00 | B100: 85.19056 | C100: 30.75951 | D100: 54.43105
A101: 2018-01-19 | B101: 84.98906 | C101: 30.72507 | D101: 54.26399
A102: 2018-01-19T12:00:00 | B102: 85.20861 | C102: 30.84482 | D102: 54.36379
A103: 2018-01-20 | B103: 85.03418 | C103: 30.90797 | D103: 54.12621
A104: 2018-01-20T12:00:00 | B104: 84.89884 | C104: 30.97113 | D104: 53.92771
A105: 2018-01-21 | B105: 84.75148 | C105: 31.05725 | D105: 53.69423
A106: 2018-01-21T12:00:00 | B106: 84.67028 | C106: 31.14255 | D106: 53.52773
A107: 2018-01-22 | B107: 84.41164 | C107: 31.08596 | D107: 53.32568
A108: 2018-01-22T12:00:00 | B108: 84.41164 | C108: 31.14255 | D108: 53.26909
A109: 2018-01-23 | B109: 84.4387 | C109: 31.23442 | D109: 53.20428
A110: 2018-01-23T12:00:00 | B110: 84.40261 | C110: 31.19423 | D110: 53.20838
A111: 2018-01-24 | B111: 84.18307 | C111: 30.99409 | D111: 53.18898
A112: 2018-01-24T12:00:00 | B112: 83.99059 | C112: 30.83415 | D112: 53.15644
A113: 2018-01-25 | B113: 83.75301 | C113: 30.63894 | D113: 53.11407
A114: 2018-01-25T12:00:00 | B114: 83.80113 | C114: 30.72835 | D114: 53.07278
A115: 2018-01-26 | B115: 83.90939 | C115: 30.90223 | D115: 53.00716
A116: 2018-01-26T12:00:00 | B116: 84.11991 | C116: 31.13681 | D116: 52.9831
A117: 2018-01-27 | B117: 84.11991 | C117: 31.14829 | D117: 52.97162
A118: 2018-01-27T12:00:00 | B118: 84.17405 | C118: 31.20161 | D118: 52.97244
A119: 2018-01-28 | B119: 84.10187 | C119: 31.31234 | D119: 52.78953
A120: 2018-01-28T12:00:00 | B120: 84.28532 | C120: 31.45751 | D120: 52.82781
A121: 2018-01-29 | B121: 84.18307 | C121: 31.40584 | D121: 52.77723
A122: 2018-01-29T12:00:00 | B122: 84.13796 | C122: 31.27461 | D122: 52.86335
A123: 2018-01-30 | B123: 83.84624 | C123: 30.95636 | D123: 52.88988
A124: 2018-01-30T12:00:00 | B124: 83.74399 | C124: 30.87352 | D124: 52.87047
A125: 2018-01-31 | B125: 83.78007 | C125: 31.02854 | D125: 52.75153
A126: 2018-01-31T12:00:00 | B126: 83.84624 | C126: 31.09334 | D126: 52.7529
A127: 2018-02-01 | B127: 83.93646 | C127: 31.11795 | D127: 52.81851
A128: 2018-02-01T12:00:00 | B128: 83.97255 | C128: 31.19012 | D128: 52.78243
A129: 2018-02-02 | B129: 83.96353 | C129: 31.15978 | D129: 52.80375
A130: 2018-02-02T12:00:00 | B130: 83.93646 | C130: 31.18848 | D130: 52.74798
A131: 2018-02-03 | B131: 83.86428 | C131: 31.1081 | D131: 52.75618
A132: 2018-02-03T12:00:00 | B132: 83.89135 | C132: 31.11385 | D132: 52.7775
A133: 2018-02-04 | B133: 83.75301 | C133: 31.09662 | D133: 52.65639
A134: 2018-02-04T12:00:00 | B134: 83.77105 | C134: 31.06873 | D134: 52.70232
A135: 2018-02-05 | B135: 83.57858 | C135: 30.94488 | D135: 52.6337
A136: 2018-02-05T12:00:00 | B136: 83.61767 | C136: 30.96539 | D136: 52.65228
A137: 2018-02-06 | B137: 83.67181 | C137: 30.96211 | D137: 52.7097
A138: 2018-02-06T12:00:00 | B138: 84.02969 | C138: 31.18274 | D138: 52.84695
A139: 2018-02-07 | B139: 84.24021 | C139: 31.2459 | D139: 52.99431
A140: 2018-02-07T12:00:00 | B140: 84.30337 | C140: 31.32054 | D140: 52.98283
A141: 2018-02-08 | B141: 84.28532 | C141: 31.24754 | D141: 53.03778
A142: 2018-02-08T12:00:00 | B142: 84.18307 | C142: 31.1081 | D142: 53.07497
A143: 2018-02-09 | B143: 84.12894 | C143: 30.92766 | D143: 53.20128
A144: 2018-02-09T12:00:00 | B144: 84.156 | C144: 30.97933 | D144: 53.17667
A145: 2018-02-10 | B145: 84.08383 | C145: 30.88173 | D145: 53.2021
A146: 2018-02-10T12:00:00 | B146: 84.4387 | C146: 31.11385 | D146: 53.32485
A147: 2018-02-11 | B147: 84.34848 | C147: 31.05151 | D147: 53.29697
A148: 2018-02-11T12:00:00 | B148: 84.04774 | C148: 30.69062 | D148: 53.35712
A149: 2018-02-12 | B149: 83.97255 | C149: 30.6332 | D149: 53.33935
A150: 2018-02-12T12:00:00 | B150: 84.29435 | C150: 30.81857 | D150: 53.47578
A151: 2018-02-13 | B151: 84.45976 | C151: 31.08022 | D151: 53.37954
A152: 2018-02-13T12:00:00 | B152: 84.51389 | C152: 31.25738 | D152: 53.25651
A153: 2018-02-14 | B153: 84.32141 | C153: 31.05151 | D153: 53.2699
A154: 2018-02-14T12:00:00 | B154: 84.29435 | C154: 30.91946 | D154: 53.37489
A155: 2018-02-15 | B155: 84.42066 | C155: 30.98835 | D155: 53.43231
A156: 2018-02-15T12:00:00 | B156: 84.58607 | C156: 31.28773 | D156: 53.29834
A157: 2018-02-16 | B157: 84.54096 | C157: 31.32382 | D157: 53.21714
A158: 2018-02-16T12:00:00 | B158: 84.50487 | C158: 31.18274 | D158: 53.32213
A159: 2018-02-17 | B159: 84.52291 | C159: 31.09334 | D159: 53.42957
A160: 2018-02-17T12:00:00 | B160: 84.33946 | C160: 30.89649 | D160: 53.44297
A161: 2018-02-18 | B161: 83.98157 | C161: 30.51345 | D161: 53.46812
A162: 2018-02-18T12:00:00 | B162: 83.96353 | C162: 30.4872 | D162: 53.47633
A163: 2018-02-19 | B163: 84.02969 | C163: 30.53314 | D163: 53.49655
A164: 2018-02-19T12:00:00 | B164: 84.24923 | C164: 30.70784 | D164: 53.54139
A165: 2018-02-20 | B165: 84.33946 | C165: 30.93914 | D165: 53.40032
A166: 2018-02-20T12:00:00 | B166: 84.40261 | C166: 31.10482 | D166: 53.29779
A167: 2018-02-21 | B167: 84.33044 | C167: 31.08022 | D167: 53.25022
A168: 2018-02-21T12:00:00 | B168: 84.33044 | C168: 31.10482 | D168: 53.22562
A169: 2018-02-22 | B169: 84.21916 | C169: 30.92848 | D169: 53.29068
A170: 2018-02-22T12:00:00 | B170: 84.33946 | C170: 30.9334 | D170: 53.40606
A171: 2018-02-23 | B171: 84.38457 | C171: 31.05151 | D171: 53.33306
A172: 2018-02-23T12:00:00 | B172: 84.50487 | C172: 31.23852 | D172: 53.26635
A173: 2018-02-24 | B173: 84.36652 | C173: 31.12533 | D173: 53.24119
A174: 2018-02-24T12:00:00 | B174: 84.14698 | C174: 30.85302 | D174: 53.29396
A175: 2018-02-25 | B175: 84.24923 | C175: 31.05315 | D175: 53.19608
A176: 2018-02-25T12:00:00 | B176: 84.25826 | C176: 31.03757 | D176: 53.22069
A177: 2018-02-26 | B177: 83.96353 | C177: 30.71358 | D177: 53.24995
A178: 2018-02-26T12:00:00 | B178: 84.24021 | C178: 30.8399 | D178: 53.40031
A179: 2018-02-27 | B179: 84.2763 | C179: 30.95062 | D179: 53.32568
A180: 2018-02-27T12:00:00 | B180: 84.33946 | C180: 31.06299 | D180: 53.27647
A181: 2018-02-28 | B181: 84.24923 | C181: 31.00558 | D181: 53.24365
A182: 2018-02-28T12:00:00 | B182: 84.24021 | C182: 30.98835 | D182: 53.25186
A183: 2018-03-01 | B183: 84.08383 | C183: 30.82267 | D183: 53.26116
A184: 2018-03-01T12:00:00 | B184: 84.00262 | C184: 30.62992 | D184: 53.3727
A185: 2018-03-02 | B185: 83.92744 | C185: 30.43061 | D185: 53.49683
A186: 2018-03-02T12:00:00 | B186: 84.14698 | C186: 30.70784 | D186: 53.43914
A187: 2018-03-03 | B187: 84.10187 | C187: 30.72178 | D187: 53.38009
A188: 2018-03-03T12:00:00 | B188: 84.11089 | C188: 30.78494 | D188: 53.32595
A189: 2018-03-04 | B189: 84.10187 | C189: 30.84154 | D189: 53.26033
A190: 2018-03-04T12:00:00 | B190: 84.24923 | C190: 31.03428 | D190: 53.21495
A191: 2018-03-05 | B191: 84.31239 | C191: 31.1729 | D191: 53.13949
A192: 2018-03-05T12:00:00 | B192: 84.46878 | C192: 31.27461 | D192: 53.19417
A193: 2018-03-06 | B193: 84.4778 | C193: 31.21555 | D193: 53.26225
A194: 2018-03-06T12:00:00 | B194: 84.38457 | C194: 31.25328 | D194: 53.13129
A195: 2018-03-07 | B195: 84.4778 | C195: 31.17864 | D195: 53.29916
A196: 2018-03-07T12:00:00 | B196: 84.42367 | C196: 31.11631 | D196: 53.30736
A197: 2018-03-08 | B197: 84.22217 | C197: 30.9252 | D197: 53.29697
A198: 2018-03-08T12:00:00 | B198: 84.156 | C198: 30.88747 | D198: 53.26853
A199: 2018-03-09 | B199: 84.156 | C199: 30.81283 | D199: 53.34317
A200: 2018-03-09T12:00:00 | B200: 84.11089 | C200: 30.82021 | D200: 53.29068
... 532 more rows

Sheet Test Well #1 Zone 5
A1: Test Well #1 Zone 5
A2: Date and Time (24-hour) | B2: Absolute Pressure Above Logger (feet of water) | C2: Barometric Pressure from On-Site Logger (feet of water) | D2: Barometric Compensation (feet of water)
A3: 2017-12-01 | B3: 63.36559 | C3: 31.14665 | D3: 32.21894
A4: 2017-12-01T12:00:00 | B4: 63.37462 | C4: 31.08596 | D4: 32.28866
A5: 2017-12-02 | B5: 63.39567 | C5: 30.97687 | D5: 32.4188
A6: 2017-12-02T12:00:00 | B6: 63.40469 | C6: 30.92192 | D6: 32.48277
A7: 2017-12-03 | B7: 63.38364 | C7: 30.68488 | D7: 32.69876
A8: 2017-12-03T12:00:00 | B8: 63.42274 | C8: 30.77428 | D8: 32.64846
A9: 2017-12-04 | B9: 63.46785 | C9: 31.14091 | D9: 32.32694
A10: 2017-12-04T12:00:00 | B10: 63.46785 | C10: 31.32628 | D10: 32.14157
A11: 2017-12-05 | B11: 63.48589 | C11: 31.39846 | D11: 32.08743
A12: 2017-12-05T12:00:00 | B12: 63.53401 | C12: 31.53789 | D12: 31.99612
A13: 2017-12-06 | B13: 63.55206 | C13: 31.55922 | D13: 31.99284
A14: 2017-12-06T12:00:00 | B14: 63.59717 | C14: 31.70194 | D14: 31.89523
A15: 2017-12-07 | B15: 63.63626 | C15: 31.67897 | D15: 31.95729
A16: 2017-12-07T12:00:00 | B16: 63.66935 | C16: 31.70358 | D16: 31.96577
A17: 2017-12-08 | B17: 63.70844 | C17: 31.69209 | D17: 32.01635
A18: 2017-12-08T12:00:00 | B18: 63.73852 | C18: 31.69045 | D18: 32.04807
A19: 2017-12-09 | B19: 63.76558 | C19: 31.66913 | D19: 32.09645
A20: 2017-12-09T12:00:00 | B20: 63.80167 | C20: 31.68225 | D20: 32.11942
A21: 2017-12-10 | B21: 63.83776 | C21: 31.68471 | D21: 32.15305
A22: 2017-12-10T12:00:00 | B22: 63.86483 | C22: 31.67323 | D22: 32.1916
A23: 2017-12-11 | B23: 63.8949 | C23: 31.62238 | D23: 32.27252
A24: 2017-12-11T12:00:00 | B24: 63.93701 | C24: 31.6519 | D24: 32.28511
A25: 2017-12-12 | B25: 63.94603 | C25: 31.6396 | D25: 32.30643
A26: 2017-12-12T12:00:00 | B26: 63.98513 | C26: 31.61745 | D26: 32.36768
A27: 2017-12-13 | B27: 63.9761 | C27: 31.46325 | D27: 32.51285
A28: 2017-12-13T12:00:00 | B28: 64.00317 | C28: 31.37303 | D28: 32.63014
A29: 2017-12-14 | B29: 64.02122 | C29: 31.41732 | D29: 32.6039
A30: 2017-12-14T12:00:00 | B30: 64.05731 | C30: 31.52641 | D30: 32.5309
A31: 2017-12-15 | B31: 64.03926 | C31: 31.39272 | D31: 32.64654
A32: 2017-12-15T12:00:00 | B32: 64.03024 | C32: 31.22867 | D32: 32.80157
A33: 2017-12-16 | B33: 64.02122 | C33: 31.04331 | D33: 32.97791
A34: 2017-12-16T12:00:00 | B34: 64.02122 | C34: 31.04905 | D34: 32.97217
A35: 2017-12-17 | B35: 64.03926 | C35: 31.14091 | D35: 32.89835
A36: 2017-12-17T12:00:00 | B36: 64.03926 | C36: 31.18684 | D36: 32.85242
A37: 2017-12-18 | B37: 64.03024 | C37: 31.15978 | D37: 32.87046
A38: 2017-12-18T12:00:00 | B38: 64.02122 | C38: 31.15075 | D38: 32.87047
A39: 2017-12-19 | B39: 64.01219 | C39: 31.06627 | D39: 32.94592
A40: 2017-12-19T12:00:00 | B40: 63.99415 | C40: 30.89075 | D40: 33.1034
A41: 2017-12-20 | B41: 63.95505 | C41: 30.58481 | D41: 33.37024
A42: 2017-12-20T12:00:00 | B42: 63.9761 | C42: 30.89075 | D42: 33.08535
A43: 2017-12-21 | B43: 63.99415 | C43: 31.10072 | D43: 32.89343
A44: 2017-12-21T12:00:00 | B44: 63.99415 | C44: 31.26722 | D44: 32.72693
A45: 2017-12-22 | B45: 63.9761 | C45: 31.16388 | D45: 32.81222
A46: 2017-12-22T12:00:00 | B46: 63.9761 | C46: 31.09334 | D46: 32.88276
A47: 2017-12-23 | B47: 63.9761 | C47: 31.07448 | D47: 32.90162
A48: 2017-12-23T12:00:00 | B48: 64.00317 | C48: 31.20407 | D48: 32.7991
A49: 2017-12-24 | B49: 64.03926 | C49: 31.38862 | D49: 32.65064
A50: 2017-12-24T12:00:00 | B50: 64.00317 | C50: 31.30331 | D50: 32.69986
A51: 2017-12-25 | B51: 64.01219 | C51: 31.13927 | D51: 32.87292
A52: 2017-12-25T12:00:00 | B52: 64.01219 | C52: 31.12943 | D52: 32.88276
A53: 2017-12-26 | B53: 64.03024 | C53: 31.18274 | D53: 32.8475
A54: 2017-12-26T12:00:00 | B54: 64.06633 | C54: 31.27461 | D54: 32.79172
A55: 2017-12-27 | B55: 64.06633 | C55: 31.22129 | D55: 32.84504
A56: 2017-12-27T12:00:00 | B56: 64.07535 | C56: 31.26148 | D56: 32.81387
A57: 2017-12-28 | B57: 64.09339 | C57: 31.27625 | D57: 32.81714
A58: 2017-12-28T12:00:00 | B58: 64.09339 | C58: 31.22867 | D58: 32.86472
A59: 2017-12-29 | B59: 64.08437 | C59: 31.08596 | D59: 32.99841
A60: 2017-12-29T12:00:00 | B60: 64.09339 | C60: 31.0835 | D60: 33.00989
A61: 2017-12-30 | B61: 64.08437 | C61: 30.93094 | D61: 33.15343
A62: 2017-12-30T12:00:00 | B62: 64.11445 | C62: 31.07448 | D62: 33.03997
A63: 2017-12-31 | B63: 64.12347 | C63: 31.17536 | D63: 32.94811
A64: 2017-12-31T12:00:00 | B64: 64.13249 | C64: 31.27051 | D64: 32.86198
A65: 2018-01-01 | B65: 64.14151 | C65: 31.26886 | D65: 32.87265
A66: 2018-01-01T12:00:00 | B66: 64.15956 | C66: 31.36975 | D66: 32.78981
A67: 2018-01-02 | B67: 64.16858 | C67: 31.4001 | D67: 32.76848
A68: 2018-01-02T12:00:00 | B68: 64.18663 | C68: 31.4936 | D68: 32.69303
A69: 2018-01-03 | B69: 64.18963 | C69: 31.36729 | D69: 32.82234
A70: 2018-01-03T12:00:00 | B70: 64.18963 | C70: 31.26722 | D70: 32.92241
A71: 2018-01-04 | B71: 64.20768 | C71: 31.19997 | D71: 33.00771
A72: 2018-01-04T12:00:00 | B72: 64.24076 | C72: 31.1729 | D72: 33.06786
A73: 2018-01-05 | B73: 64.24076 | C73: 31.15404 | D73: 33.08672
A74: 2018-01-05T12:00:00 | B74: 64.25279 | C74: 31.177 | D74: 33.07579
A75: 2018-01-06 | B75: 64.26181 | C75: 31.08596 | D75: 33.17585
A76: 2018-01-06T12:00:00 | B76: 64.25279 | C76: 31.1081 | D76: 33.14469
A77: 2018-01-07 | B77: 64.26181 | C77: 31.12369 | D77: 33.13812
A78: 2018-01-07T12:00:00 | B78: 64.25279 | C78: 31.12779 | D78: 33.125
A79: 2018-01-08 | B79: 64.25279 | C79: 30.98835 | D79: 33.26444
A80: 2018-01-08T12:00:00 | B80: 64.22572 | C80: 30.87352 | D80: 33.3522
A81: 2018-01-09 | B81: 64.22271 | C81: 30.69636 | D81: 33.52635
A82: 2018-01-09T12:00:00 | B82: 64.19865 | C82: 30.53396 | D82: 33.66469
A83: 2018-01-10 | B83: 64.20768 | C83: 30.56759 | D83: 33.64009
A84: 2018-01-10T12:00:00 | B84: 64.22271 | C84: 30.87927 | D84: 33.34344
A85: 2018-01-11 | B85: 64.2167 | C85: 31.02608 | D85: 33.19062
A86: 2018-01-11T12:00:00 | B86: 64.18061 | C86: 30.98835 | D86: 33.19226
A87: 2018-01-12 | B87: 64.19865 | C87: 30.96539 | D87: 33.23326
A88: 2018-01-12T12:00:00 | B88: 64.23174 | C88: 31.27461 | D88: 32.95713
A89: 2018-01-13 | B89: 64.24377 | C89: 31.34268 | D89: 32.90109
A90: 2018-01-13T12:00:00 | B90: 64.25279 | C90: 31.41732 | D90: 32.83547
A91: 2018-01-14 | B91: 64.27986 | C91: 31.4001 | D91: 32.87976
A92: 2018-01-14T12:00:00 | B92: 64.28888 | C92: 31.35991 | D92: 32.92897
A93: 2018-01-15 | B93: 64.28888 | C93: 31.2459 | D93: 33.04298
A94: 2018-01-15T12:00:00 | B94: 64.2979 | C94: 31.23442 | D94: 33.06348
A95: 2018-01-16 | B95: 64.32497 | C95: 31.12533 | D95: 33.19964
A96: 2018-01-16T12:00:00 | B96: 64.34602 | C96: 31.26312 | D96: 33.0829
A97: 2018-01-17 | B97: 64.34301 | C97: 31.26886 | D97: 33.07415
A98: 2018-01-17T12:00:00 | B98: 64.36406 | C98: 31.28609 | D98: 33.07797
A99: 2018-01-18 | B99: 64.337 | C99: 31.00558 | D99: 33.33142
A100: 2018-01-18T12:00:00 | B100: 64.33399 | C100: 30.75951 | D100: 33.57448
A101: 2018-01-19 | B101: 64.34602 | C101: 30.72507 | D101: 33.62095
A102: 2018-01-19T12:00:00 | B102: 64.34602 | C102: 30.84482 | D102: 33.5012
A103: 2018-01-20 | B103: 64.34602 | C103: 30.90797 | D103: 33.43805
A104: 2018-01-20T12:00:00 | B104: 64.34602 | C104: 30.97113 | D104: 33.37489
A105: 2018-01-21 | B105: 64.35504 | C105: 31.05725 | D105: 33.29779
A106: 2018-01-21T12:00:00 | B106: 64.36406 | C106: 31.14255 | D106: 33.22151
A107: 2018-01-22 | B107: 64.36406 | C107: 31.08596 | D107: 33.2781
A108: 2018-01-22T12:00:00 | B108: 64.38211 | C108: 31.14255 | D108: 33.23956
A109: 2018-01-23 | B109: 64.40015 | C109: 31.23442 | D109: 33.16573
A110: 2018-01-23T12:00:00 | B110: 64.38812 | C110: 31.19423 | D110: 33.19389
A111: 2018-01-24 | B111: 64.37309 | C111: 30.99409 | D111: 33.379
A112: 2018-01-24T12:00:00 | B112: 64.36406 | C112: 30.83415 | D112: 33.52991
A113: 2018-01-25 | B113: 64.35203 | C113: 30.63894 | D113: 33.71309
A114: 2018-01-25T12:00:00 | B114: 64.36406 | C114: 30.72835 | D114: 33.63571
A115: 2018-01-26 | B115: 64.38211 | C115: 30.90223 | D115: 33.47988
A116: 2018-01-26T12:00:00 | B116: 64.40918 | C116: 31.13681 | D116: 33.27237
A117: 2018-01-27 | B117: 64.38812 | C117: 31.14829 | D117: 33.23983
A118: 2018-01-27T12:00:00 | B118: 64.40015 | C118: 31.20161 | D118: 33.19854
A119: 2018-01-28 | B119: 64.42722 | C119: 31.31234 | D119: 33.11488
A120: 2018-01-28T12:00:00 | B120: 64.44526 | C120: 31.45751 | D120: 32.98775
A121: 2018-01-29 | B121: 64.44526 | C121: 31.40584 | D121: 33.03942
A122: 2018-01-29T12:00:00 | B122: 64.44526 | C122: 31.27461 | D122: 33.17065
A123: 2018-01-30 | B123: 64.43624 | C123: 30.95636 | D123: 33.47988
A124: 2018-01-30T12:00:00 | B124: 64.43624 | C124: 30.87352 | D124: 33.56272
A125: 2018-01-31 | B125: 64.46331 | C125: 31.02854 | D125: 33.43477
A126: 2018-01-31T12:00:00 | B126: 64.45429 | C126: 31.09334 | D126: 33.36095
A127: 2018-02-01 | B127: 64.48436 | C127: 31.11795 | D127: 33.36641
A128: 2018-02-01T12:00:00 | B128: 64.48436 | C128: 31.19012 | D128: 33.29424
A129: 2018-02-02 | B129: 64.48436 | C129: 31.15978 | D129: 33.32458
A130: 2018-02-02T12:00:00 | B130: 64.50241 | C130: 31.18848 | D130: 33.31393
A131: 2018-02-03 | B131: 64.50241 | C131: 31.1081 | D131: 33.39431
A132: 2018-02-03T12:00:00 | B132: 64.49338 | C132: 31.11385 | D132: 33.37953
A133: 2018-02-04 | B133: 64.50241 | C133: 31.09662 | D133: 33.40579
A134: 2018-02-04T12:00:00 | B134: 64.50241 | C134: 31.06873 | D134: 33.43368
A135: 2018-02-05 | B135: 64.51143 | C135: 30.94488 | D135: 33.56655
A136: 2018-02-05T12:00:00 | B136: 64.51143 | C136: 30.96539 | D136: 33.54604
A137: 2018-02-06 | B137: 64.51143 | C137: 30.96211 | D137: 33.54932
A138: 2018-02-06T12:00:00 | B138: 64.5385 | C138: 31.18274 | D138: 33.35576
A139: 2018-02-07 | B139: 64.54752 | C139: 31.2459 | D139: 33.30162
A140: 2018-02-07T12:00:00 | B140: 64.54752 | C140: 31.32054 | D140: 33.22698
A141: 2018-02-08 | B141: 64.54752 | C141: 31.24754 | D141: 33.29998
A142: 2018-02-08T12:00:00 | B142: 64.5385 | C142: 31.1081 | D142: 33.4304
A143: 2018-02-09 | B143: 64.5385 | C143: 30.92766 | D143: 33.61084
A144: 2018-02-09T12:00:00 | B144: 64.54752 | C144: 30.97933 | D144: 33.56819
A145: 2018-02-10 | B145: 64.52947 | C145: 30.88173 | D145: 33.64774
A146: 2018-02-10T12:00:00 | B146: 64.57458 | C146: 31.11385 | D146: 33.46073
A147: 2018-02-11 | B147: 64.54752 | C147: 31.05151 | D147: 33.49601
A148: 2018-02-11T12:00:00 | B148: 64.50241 | C148: 30.69062 | D148: 33.81179
A149: 2018-02-12 | B149: 64.51143 | C149: 30.6332 | D149: 33.87823
A150: 2018-02-12T12:00:00 | B150: 64.52045 | C150: 30.81857 | D150: 33.70188
A151: 2018-02-13 | B151: 64.55654 | C151: 31.08022 | D151: 33.47632
A152: 2018-02-13T12:00:00 | B152: 64.56556 | C152: 31.25738 | D152: 33.30818
A153: 2018-02-14 | B153: 64.52045 | C153: 31.05151 | D153: 33.46894
A154: 2018-02-14T12:00:00 | B154: 64.5385 | C154: 30.91946 | D154: 33.61904
A155: 2018-02-15 | B155: 64.56556 | C155: 30.98835 | D155: 33.57721
A156: 2018-02-15T12:00:00 | B156: 64.60165 | C156: 31.28773 | D156: 33.31392
A157: 2018-02-16 | B157: 64.58361 | C157: 31.32382 | D157: 33.25979
A158: 2018-02-16T12:00:00 | B158: 64.57458 | C158: 31.18274 | D158: 33.39184
A159: 2018-02-17 | B159: 64.57458 | C159: 31.09334 | D159: 33.48124
A160: 2018-02-17T12:00:00 | B160: 64.55654 | C160: 30.89649 | D160: 33.66005
A161: 2018-02-18 | B161: 64.5385 | C161: 30.51345 | D161: 34.02505
A162: 2018-02-18T12:00:00 | B162: 64.5385 | C162: 30.4872 | D162: 34.0513
A163: 2018-02-19 | B163: 64.52647 | C163: 30.53314 | D163: 33.99333
A164: 2018-02-19T12:00:00 | B164: 64.52647 | C164: 30.70784 | D164: 33.81863
A165: 2018-02-20 | B165: 64.54752 | C165: 30.93914 | D165: 33.60838
A166: 2018-02-20T12:00:00 | B166: 64.5385 | C166: 31.10482 | D166: 33.43368
A167: 2018-02-21 | B167: 64.54752 | C167: 31.08022 | D167: 33.4673
A168: 2018-02-21T12:00:00 | B168: 64.55654 | C168: 31.10482 | D168: 33.45172
A169: 2018-02-22 | B169: 64.5385 | C169: 30.92848 | D169: 33.61002
A170: 2018-02-22T12:00:00 | B170: 64.54752 | C170: 30.9334 | D170: 33.61412
A171: 2018-02-23 | B171: 64.57458 | C171: 31.05151 | D171: 33.52307
A172: 2018-02-23T12:00:00 | B172: 64.58361 | C172: 31.23852 | D172: 33.34509
A173: 2018-02-24 | B173: 64.57458 | C173: 31.12533 | D173: 33.44925
A174: 2018-02-24T12:00:00 | B174: 64.55654 | C174: 30.85302 | D174: 33.70352
A175: 2018-02-25 | B175: 64.61067 | C175: 31.05315 | D175: 33.55752
A176: 2018-02-25T12:00:00 | B176: 64.59263 | C176: 31.03757 | D176: 33.55506
A177: 2018-02-26 | B177: 64.5385 | C177: 30.71358 | D177: 33.82492
A178: 2018-02-26T12:00:00 | B178: 64.59263 | C178: 30.8399 | D178: 33.75273
A179: 2018-02-27 | B179: 64.59263 | C179: 30.95062 | D179: 33.64201
A180: 2018-02-27T12:00:00 | B180: 64.60165 | C180: 31.06299 | D180: 33.53866
A181: 2018-02-28 | B181: 64.59263 | C181: 31.00558 | D181: 33.58705
A182: 2018-02-28T12:00:00 | B182: 64.59263 | C182: 30.98835 | D182: 33.60428
A183: 2018-03-01 | B183: 64.58361 | C183: 30.82267 | D183: 33.76094
A184: 2018-03-01T12:00:00 | B184: 64.55654 | C184: 30.62992 | D184: 33.92662
A185: 2018-03-02 | B185: 64.5385 | C185: 30.43061 | D185: 34.10789
A186: 2018-03-02T12:00:00 | B186: 64.57458 | C186: 30.70784 | D186: 33.86674
A187: 2018-03-03 | B187: 64.54752 | C187: 30.72178 | D187: 33.82574
A188: 2018-03-03T12:00:00 | B188: 64.54752 | C188: 30.78494 | D188: 33.76258
A189: 2018-03-04 | B189: 64.54752 | C189: 30.84154 | D189: 33.70598
A190: 2018-03-04T12:00:00 | B190: 64.55654 | C190: 31.03428 | D190: 33.52226
A191: 2018-03-05 | B191: 64.57458 | C191: 31.1729 | D191: 33.40168
A192: 2018-03-05T12:00:00 | B192: 64.58361 | C192: 31.27461 | D192: 33.309
A193: 2018-03-06 | B193: 64.58361 | C193: 31.21555 | D193: 33.36806
A194: 2018-03-06T12:00:00 | B194: 64.59263 | C194: 31.25328 | D194: 33.33935
A195: 2018-03-07 | B195: 64.61067 | C195: 31.17864 | D195: 33.43203
A196: 2018-03-07T12:00:00 | B196: 64.6197 | C196: 31.11631 | D196: 33.50339
A197: 2018-03-08 | B197: 64.62872 | C197: 30.9252 | D197: 33.70352
A198: 2018-03-08T12:00:00 | B198: 64.63774 | C198: 30.88747 | D198: 33.75027
A199: 2018-03-09 | B199: 64.62872 | C199: 30.81283 | D199: 33.81589
A200: 2018-03-09T12:00:00 | B200: 64.61067 | C200: 30.82021 | D200: 33.79046
... 532 more rows

Sheet Test Well #2 Zone 1
A1: Test Well #2 Zone 1
A2: Date and Time (24-hour) | B2: Absolute Pressure Above Logger (feet of water) | C2: Barometric Pressure from On-Site Logger (feet of water) | D2: Barometric Compensation (feet of water)
A3: 2017-12-01 | B3: 33.66114 | C3: 31.14665 | D3: =B3-C3 -> 2.51449
A4: 2017-12-01T12:00:00 | B4: 33.67017 | C4: 31.08596 | D4: 2.58421
A5: 2017-12-02 | B5: 33.67618 | C5: 30.97687 | D5: 2.69931
A6: 2017-12-02T12:00:00 | B6: 33.67017 | C6: 30.92192 | D6: 2.74825
A7: 2017-12-03 | B7: 33.66114 | C7: 30.68488 | D7: 2.97626
A8: 2017-12-03T12:00:00 | B8: 33.6852 | C8: 30.77428 | D8: 2.91092
A9: 2017-12-04 | B9: 33.6852 | C9: 31.14091 | D9: 2.54429
A10: 2017-12-04T12:00:00 | B10: 33.69423 | C10: 31.32628 | D10: 2.36795
A11: 2017-12-05 | B11: 33.67017 | C11: 31.39846 | D11: 2.27171
A12: 2017-12-05T12:00:00 | B12: 33.69423 | C12: 31.53789 | D12: 2.15634
A13: 2017-12-06 | B13: 33.70325 | C13: 31.55922 | D13: 2.14403
A14: 2017-12-06T12:00:00 | B14: 33.72129 | C14: 31.70194 | D14: 2.01935
A15: 2017-12-07 | B15: 33.73934 | C15: 31.67897 | D15: 2.06037
A16: 2017-12-07T12:00:00 | B16: 33.77242 | C16: 31.70358 | D16: 2.06884
A17: 2017-12-08 | B17: 33.80851 | C17: 31.69209 | D17: 2.11642
A18: 2017-12-08T12:00:00 | B18: 33.82355 | C18: 31.69045 | D18: 2.1331
A19: 2017-12-09 | B19: 33.85061 | C19: 31.66913 | D19: 2.18148
A20: 2017-12-09T12:00:00 | B20: 33.87768 | C20: 31.68225 | D20: 2.19543
A21: 2017-12-10 | B21: 33.89272 | C21: 31.68471 | D21: 2.20801
A22: 2017-12-10T12:00:00 | B22: 33.91076 | C22: 31.67323 | D22: 2.23753
A23: 2017-12-11 | B23: 33.91978 | C23: 31.62238 | D23: 2.2974
A24: 2017-12-11T12:00:00 | B24: 33.94685 | C24: 31.6519 | D24: 2.29495
A25: 2017-12-12 | B25: 33.97993 | C25: 31.6396 | D25: 2.34033
A26: 2017-12-12T12:00:00 | B26: 33.98895 | C26: 31.61745 | D26: 2.3715
A27: 2017-12-13 | B27: 33.98895 | C27: 31.46325 | D27: 2.5257
A28: 2017-12-13T12:00:00 | B28: 33.99798 | C28: 31.37303 | D28: 2.62495
A29: 2017-12-14 | B29: 34.01602 | C29: 31.41732 | D29: 2.5987
A30: 2017-12-14T12:00:00 | B30: 34.01602 | C30: 31.52641 | D30: 2.48961
A31: 2017-12-15 | B31: 34.007 | C31: 31.39272 | D31: 2.61428
A32: 2017-12-15T12:00:00 | B32: 33.99798 | C32: 31.22867 | D32: 2.76931
A33: 2017-12-16 | B33: 33.99798 | C33: 31.04331 | D33: 2.95467
A34: 2017-12-16T12:00:00 | B34: 33.99798 | C34: 31.04905 | D34: 2.94893
A35: 2017-12-17 | B35: 33.99798 | C35: 31.14091 | D35: 2.85707
A36: 2017-12-17T12:00:00 | B36: 33.98895 | C36: 31.18684 | D36: 2.80211
A37: 2017-12-18 | B37: 33.97091 | C37: 31.15978 | D37: 2.81113
A38: 2017-12-18T12:00:00 | B38: 33.97091 | C38: 31.15075 | D38: 2.82016
A39: 2017-12-19 | B39: 33.95587 | C39: 31.06627 | D39: 2.8896
A40: 2017-12-19T12:00:00 | B40: 33.94685 | C40: 30.89075 | D40: 3.0561
A41: 2017-12-20 | B41: 33.93783 | C41: 30.58481 | D41: 3.35302
A42: 2017-12-20T12:00:00 | B42: 33.93783 | C42: 30.89075 | D42: 3.04708
A43: 2017-12-21 | B43: 33.91978 | C43: 31.10072 | D43: 2.81906
A44: 2017-12-21T12:00:00 | B44: 33.91076 | C44: 31.26722 | D44: 2.64354
A45: 2017-12-22 | B45: 33.8867 | C45: 31.16388 | D45: 2.72282
A46: 2017-12-22T12:00:00 | B46: 33.8867 | C46: 31.09334 | D46: 2.79336
A47: 2017-12-23 | B47: 33.87768 | C47: 31.07448 | D47: 2.8032
A48: 2017-12-23T12:00:00 | B48: 33.8867 | C48: 31.20407 | D48: 2.68263
A49: 2017-12-24 | B49: 33.89272 | C49: 31.38862 | D49: 2.5041
A50: 2017-12-24T12:00:00 | B50: 33.87768 | C50: 31.30331 | D50: 2.57437
A51: 2017-12-25 | B51: 33.8867 | C51: 31.13927 | D51: 2.74743
A52: 2017-12-25T12:00:00 | B52: 33.89272 | C52: 31.12943 | D52: 2.76329
A53: 2017-12-26 | B53: 33.8867 | C53: 31.18274 | D53: 2.70396
A54: 2017-12-26T12:00:00 | B54: 33.89272 | C54: 31.27461 | D54: 2.61811
A55: 2017-12-27 | B55: 33.89272 | C55: 31.22129 | D55: 2.67143
A56: 2017-12-27T12:00:00 | B56: 33.8867 | C56: 31.26148 | D56: 2.62522
A57: 2017-12-28 | B57: 33.90174 | C57: 31.27625 | D57: 2.62549
A58: 2017-12-28T12:00:00 | B58: 33.89272 | C58: 31.22867 | D58: 2.66405
A59: 2017-12-29 | B59: 33.89272 | C59: 31.08596 | D59: 2.80676
A60: 2017-12-29T12:00:00 | B60: 33.90174 | C60: 31.0835 | D60: 2.81824
A61: 2017-12-30 | B61: 33.87768 | C61: 30.93094 | D61: 2.94674
A62: 2017-12-30T12:00:00 | B62: 33.89272 | C62: 31.07448 | D62: 2.81824
A63: 2017-12-31 | B63: 33.8867 | C63: 31.17536 | D63: 2.71134
A64: 2017-12-31T12:00:00 | B64: 33.87768 | C64: 31.27051 | D64: 2.60717
A65: 2018-01-01 | B65: 33.87768 | C65: 31.26886 | D65: 2.60882
A66: 2018-01-01T12:00:00 | B66: 33.87768 | C66: 31.36975 | D66: 2.50793
A67: 2018-01-02 | B67: 33.87768 | C67: 31.4001 | D67: =B67-C67 -> 2.47758
A68: 2018-01-02T12:00:00 | B68: 33.8867 | C68: 31.4936 | D68: 2.3931
A69: 2018-01-03 | B69: 33.8867 | C69: 31.36729 | D69: 2.51941
A70: 2018-01-03T12:00:00 | B70: 33.89272 | C70: 31.26722 | D70: 2.6255
A71: 2018-01-04 | B71: 33.90174 | C71: 31.19997 | D71: 2.70177
A72: 2018-01-04T12:00:00 | B72: 33.91076 | C72: 31.1729 | D72: 2.73786
A73: 2018-01-05 | B73: 33.91076 | C73: 31.15404 | D73: 2.75672
A74: 2018-01-05T12:00:00 | B74: 33.91978 | C74: 31.177 | D74: 2.74278
A75: 2018-01-06 | B75: 33.91076 | C75: 31.08596 | D75: 2.8248
A76: 2018-01-06T12:00:00 | B76: 33.91076 | C76: 31.1081 | D76: 2.80266
A77: 2018-01-07 | B77: 33.90174 | C77: 31.12369 | D77: 2.77805
A78: 2018-01-07T12:00:00 | B78: 33.90174 | C78: 31.12779 | D78: 2.77395
A79: 2018-01-08 | B79: 33.8867 | C79: 30.98835 | D79: 2.89835
A80: 2018-01-08T12:00:00 | B80: 33.8867 | C80: 30.87352 | D80: 3.01318
A81: 2018-01-09 | B81: 33.87768 | C81: 30.69636 | D81: 3.18132
A82: 2018-01-09T12:00:00 | B82: 33.85061 | C82: 30.53396 | D82: 3.31665
A83: 2018-01-10 | B83: 33.85963 | C83: 30.56759 | D83: 3.29204
A84: 2018-01-10T12:00:00 | B84: 33.84159 | C84: 30.87927 | D84: 2.96232
A85: 2018-01-11 | B85: 33.83257 | C85: 31.02608 | D85: 2.80649
A86: 2018-01-11T12:00:00 | B86: 33.81452 | C86: 30.98835 | D86: 2.82617
A87: 2018-01-12 | B87: 33.81452 | C87: 30.96539 | D87: 2.84913
A88: 2018-01-12T12:00:00 | B88: 33.81452 | C88: 31.27461 | D88: 2.53991
A89: 2018-01-13 | B89: 33.80851 | C89: 31.34268 | D89: 2.46583
A90: 2018-01-13T12:00:00 | B90: 33.80851 | C90: 31.41732 | D90: 2.39119
A91: 2018-01-14 | B91: 33.82355 | C91: 31.4001 | D91: 2.42345
A92: 2018-01-14T12:00:00 | B92: 33.82355 | C92: 31.35991 | D92: 2.46364
A93: 2018-01-15 | B93: 33.83257 | C93: 31.2459 | D93: 2.58667
A94: 2018-01-15T12:00:00 | B94: 33.85061 | C94: 31.23442 | D94: 2.61619
A95: 2018-01-16 | B95: 33.85061 | C95: 31.12533 | D95: 2.72528
A96: 2018-01-16T12:00:00 | B96: 33.87768 | C96: 31.26312 | D96: 2.61456
A97: 2018-01-17 | B97: 33.85963 | C97: 31.26886 | D97: 2.59077
A98: 2018-01-17T12:00:00 | B98: 33.87768 | C98: 31.28609 | D98: 2.59159
A99: 2018-01-18 | B99: 33.85061 | C99: 31.00558 | D99: 2.84503
A100: 2018-01-18T12:00:00 | B100: 33.85963 | C100: 30.75951 | D100: 3.10012
A101: 2018-01-19 | B101: 33.86866 | C101: 30.72507 | D101: 3.14359
A102: 2018-01-19T12:00:00 | B102: 33.85963 | C102: 30.84482 | D102: 3.01481
A103: 2018-01-20 | B103: 33.85963 | C103: 30.90797 | D103: 2.95166
A104: 2018-01-20T12:00:00 | B104: 33.83257 | C104: 30.97113 | D104: 2.86144
A105: 2018-01-21 | B105: 33.84159 | C105: 31.05725 | D105: 2.78434
A106: 2018-01-21T12:00:00 | B106: 33.83257 | C106: 31.14255 | D106: 2.69002
A107: 2018-01-22 | B107: 33.83257 | C107: 31.08596 | D107: 2.74661
A108: 2018-01-22T12:00:00 | B108: 33.82355 | C108: 31.14255 | D108: 2.681
A109: 2018-01-23 | B109: 33.84159 | C109: 31.23442 | D109: 2.60717
A110: 2018-01-23T12:00:00 | B110: 33.82355 | C110: 31.19423 | D110: 2.62932
A111: 2018-01-24 | B111: 33.82355 | C111: 30.99409 | D111: 2.82946
A112: 2018-01-24T12:00:00 | B112: 33.81452 | C112: 30.83415 | D112: 2.98037
A113: 2018-01-25 | B113: 33.81452 | C113: 30.63894 | D113: 3.17558
A114: 2018-01-25T12:00:00 | B114: 33.83257 | C114: 30.72835 | D114: 3.10422
A115: 2018-01-26 | B115: 33.82355 | C115: 30.90223 | D115: 2.92132
A116: 2018-01-26T12:00:00 | B116: 33.82355 | C116: 31.13681 | D116: 2.68674
A117: 2018-01-27 | B117: 33.80851 | C117: 31.14829 | D117: 2.66022
A118: 2018-01-27T12:00:00 | B118: 33.80851 | C118: 31.20161 | D118: 2.6069
A119: 2018-01-28 | B119: 33.81452 | C119: 31.31234 | D119: 2.50218
A120: 2018-01-28T12:00:00 | B120: 33.80851 | C120: 31.45751 | D120: 2.351
A121: 2018-01-29 | B121: 33.82355 | C121: 31.40584 | D121: 2.41771
A122: 2018-01-29T12:00:00 | B122: 33.81452 | C122: 31.27461 | D122: 2.53991
A123: 2018-01-30 | B123: 33.81452 | C123: 30.95636 | D123: 2.85816
A124: 2018-01-30T12:00:00 | B124: 33.84159 | C124: 30.87352 | D124: 2.96807
A125: 2018-01-31 | B125: 33.85061 | C125: 31.02854 | D125: 2.82207
A126: 2018-01-31T12:00:00 | B126: 33.85061 | C126: 31.09334 | D126: 2.75727
A127: 2018-02-01 | B127: 33.85061 | C127: 31.11795 | D127: 2.73266
A128: 2018-02-01T12:00:00 | B128: 33.83257 | C128: 31.19012 | D128: 2.64245
A129: 2018-02-02 | B129: 33.83257 | C129: 31.15978 | D129: 2.67279
A130: 2018-02-02T12:00:00 | B130: 33.84159 | C130: 31.18848 | D130: 2.65311
A131: 2018-02-03 | B131: 33.84159 | C131: 31.1081 | D131: =B131-C131 -> 2.73349
A132: 2018-02-03T12:00:00 | B132: 33.84159 | C132: 31.11385 | D132: 2.72774
A133: 2018-02-04 | B133: 33.85061 | C133: 31.09662 | D133: 2.75399
A134: 2018-02-04T12:00:00 | B134: 33.84159 | C134: 31.06873 | D134: 2.77286
A135: 2018-02-05 | B135: 33.85061 | C135: 30.94488 | D135: 2.90573
A136: 2018-02-05T12:00:00 | B136: 33.85061 | C136: 30.96539 | D136: 2.88522
A137: 2018-02-06 | B137: 33.84159 | C137: 30.96211 | D137: 2.87948
A138: 2018-02-06T12:00:00 | B138: 33.85061 | C138: 31.18274 | D138: 2.66787
A139: 2018-02-07 | B139: 33.85061 | C139: 31.2459 | D139: 2.60471
A140: 2018-02-07T12:00:00 | B140: 33.84159 | C140: 31.32054 | D140: 2.52105
A141: 2018-02-08 | B141: 33.83257 | C141: 31.24754 | D141: 2.58503
A142: 2018-02-08T12:00:00 | B142: 33.84159 | C142: 31.1081 | D142: 2.73349
A143: 2018-02-09 | B143: 33.84159 | C143: 30.92766 | D143: 2.91393
A144: 2018-02-09T12:00:00 | B144: 33.85963 | C144: 30.97933 | D144: 2.8803
A145: 2018-02-10 | B145: 33.85061 | C145: 30.88173 | D145: 2.96888
A146: 2018-02-10T12:00:00 | B146: 33.85963 | C146: 31.11385 | D146: 2.74578
A147: 2018-02-11 | B147: 33.85061 | C147: 31.05151 | D147: 2.7991
A148: 2018-02-11T12:00:00 | B148: 33.81452 | C148: 30.69062 | D148: 3.1239
A149: 2018-02-12 | B149: 33.82355 | C149: 30.6332 | D149: 3.19035
A150: 2018-02-12T12:00:00 | B150: 33.83257 | C150: 30.81857 | D150: 3.014
A151: 2018-02-13 | B151: 33.82355 | C151: 31.08022 | D151: 2.74333
A152: 2018-02-13T12:00:00 | B152: 33.81452 | C152: 31.25738 | D152: 2.55714
A153: 2018-02-14 | B153: 33.79046 | C153: 31.05151 | D153: 2.73895
A154: 2018-02-14T12:00:00 | B154: 33.79949 | C154: 30.88501 | D154: 2.91448
A155: 2018-02-15 | B155: 33.86866 | C155: 30.98835 | D155: 2.88031
A156: 2018-02-15T12:00:00 | B156: 33.86866 | C156: 31.28773 | D156: 2.58093
A157: 2018-02-16 | B157: 33.85963 | C157: 31.32382 | D157: 2.53581
A158: 2018-02-16T12:00:00 | B158: 33.85061 | C158: 31.18274 | D158: 2.66787
A159: 2018-02-17 | B159: 33.85061 | C159: 31.09334 | D159: 2.75727
A160: 2018-02-17T12:00:00 | B160: 33.84159 | C160: 30.89649 | D160: 2.9451
A161: 2018-02-18 | B161: 33.84159 | C161: 30.51345 | D161: 3.32814
A162: 2018-02-18T12:00:00 | B162: 33.85061 | C162: 30.4872 | D162: 3.36341
A163: 2018-02-19 | B163: 33.84159 | C163: 30.53314 | D163: 3.30845
A164: 2018-02-19T12:00:00 | B164: 33.83257 | C164: 30.70784 | D164: 3.12473
A165: 2018-02-20 | B165: 33.82355 | C165: 30.93914 | D165: 2.88441
A166: 2018-02-20T12:00:00 | B166: 33.80851 | C166: 31.10482 | D166: 2.70369
A167: 2018-02-21 | B167: 33.79046 | C167: 31.08022 | D167: 2.71024
A168: 2018-02-21T12:00:00 | B168: 33.79046 | C168: 31.10482 | D168: 2.68564
A169: 2018-02-22 | B169: 33.78144 | C169: 30.92848 | D169: 2.85296
A170: 2018-02-22T12:00:00 | B170: 33.80851 | C170: 30.9334 | D170: 2.87511
A171: 2018-02-23 | B171: 33.80851 | C171: 31.05151 | D171: 2.757
A172: 2018-02-23T12:00:00 | B172: 33.80851 | C172: 31.23852 | D172: 2.56999
A173: 2018-02-24 | B173: 33.79949 | C173: 31.12533 | D173: 2.67416
A174: 2018-02-24T12:00:00 | B174: 33.79949 | C174: 30.85302 | D174: 2.94647
A175: 2018-02-25 | B175: 33.82355 | C175: 31.05315 | D175: 2.7704
A176: 2018-02-25T12:00:00 | B176: 33.81452 | C176: 31.03757 | D176: 2.77695
A177: 2018-02-26 | B177: 33.79949 | C177: 30.71358 | D177: 3.08591
A178: 2018-02-26T12:00:00 | B178: 33.81452 | C178: 30.8399 | D178: 2.97462
A179: 2018-02-27 | B179: 33.81452 | C179: 30.95062 | D179: 2.8639
A180: 2018-02-27T12:00:00 | B180: 33.80851 | C180: 31.06299 | D180: 2.74552
A181: 2018-02-28 | B181: 33.79949 | C181: 31.00558 | D181: 2.79391
A182: 2018-02-28T12:00:00 | B182: 33.79949 | C182: 30.98835 | D182: 2.81114
A183: 2018-03-01 | B183: 33.78144 | C183: 30.82267 | D183: 2.95877
A184: 2018-03-01T12:00:00 | B184: 33.78144 | C184: 30.62992 | D184: 3.15152
A185: 2018-03-02 | B185: 33.77242 | C185: 30.43061 | D185: 3.34181
A186: 2018-03-02T12:00:00 | B186: 33.79046 | C186: 30.70784 | D186: 3.08262
A187: 2018-03-03 | B187: 33.75437 | C187: 30.72178 | D187: 3.03259
A188: 2018-03-03T12:00:00 | B188: 33.75437 | C188: 30.78494 | D188: 2.96943
A189: 2018-03-04 | B189: 33.74535 | C189: 30.84154 | D189: 2.90381
A190: 2018-03-04T12:00:00 | B190: 33.73934 | C190: 31.03428 | D190: 2.70506
A191: 2018-03-05 | B191: 33.74535 | C191: 31.1729 | D191: 2.57245
A192: 2018-03-05T12:00:00 | B192: 33.73934 | C192: 31.27461 | D192: 2.46473
A193: 2018-03-06 | B193: 33.74535 | C193: 31.21555 | D193: 2.5298
A194: 2018-03-06T12:00:00 | B194: 33.75437 | C194: 31.25328 | D194: 2.50109
A195: 2018-03-07 | B195: 33.77242 | C195: 31.17864 | D195: =B195-C195 -> 2.59378
A196: 2018-03-07T12:00:00 | B196: 33.77242 | C196: 31.11631 | D196: 2.65611
A197: 2018-03-08 | B197: 33.78144 | C197: 30.9252 | D197: 2.85624
A198: 2018-03-08T12:00:00 | B198: 33.79949 | C198: 30.88747 | D198: 2.91202
A199: 2018-03-09 | B199: 33.78144 | C199: 30.81283 | D199: 2.96861
A200: 2018-03-09T12:00:00 | B200: 33.79046 | C200: 30.82021 | D200: 2.97025
... 532 more rows

Sheet Test Well #3 Zone 4
A1: Test Well #3 Zone 4
A2: Date and Time (24-hour) | B2: Absolute Pressure Above Logger (feet of water) | C2: Barometric Pressure from On-Site Logger (feet of water) | D2: Barometric Compensation (feet of water)
A3: 2017-12-01 | B3: 76.92312 | C3: 31.14665 | D3: =B3-C3 -> 45.77647
A4: 2017-12-01T12:00:00 | B4: 76.91109 | C4: 31.08596 | D4: 45.82513
A5: 2017-12-02 | B5: 76.91109 | C5: 30.97687 | D5: 45.93422
A6: 2017-12-02T12:00:00 | B6: 76.89605 | C6: 30.92192 | D6: 45.97413
A7: 2017-12-03 | B7: 76.85395 | C7: 30.68488 | D7: 46.16907
A8: 2017-12-03T12:00:00 | B8: 76.95019 | C8: 30.77428 | D8: 46.17591
A9: 2017-12-04 | B9: 77.02838 | C9: 31.14091 | D9: 45.88747
A10: 2017-12-04T12:00:00 | B10: 77.02236 | C10: 31.32628 | D10: 45.69608
A11: 2017-12-05 | B11: 77.00733 | C11: 31.39846 | D11: 45.60887
A12: 2017-12-05T12:00:00 | B12: 77.04041 | C12: 31.53789 | D12: 45.50252
A13: 2017-12-06 | B13: 77.06146 | C13: 31.55922 | D13: 45.50224
A14: 2017-12-06T12:00:00 | B14: 77.07048 | C14: 31.70194 | D14: 45.36854
A15: 2017-12-07 | B15: 77.07048 | C15: 31.67897 | D15: 45.39151
A16: 2017-12-07T12:00:00 | B16: 77.08853 | C16: 31.70358 | D16: 45.38495
A17: 2017-12-08 | B17: 77.09154 | C17: 31.69209 | D17: 45.39945
A18: 2017-12-08T12:00:00 | B18: 77.10357 | C18: 31.69045 | D18: 45.41312
A19: 2017-12-09 | B19: 77.13364 | C19: 31.66913 | D19: 45.46451
A20: 2017-12-09T12:00:00 | B20: 77.14567 | C20: 31.68225 | D20: 45.46342
A21: 2017-12-10 | B21: 77.1577 | C21: 31.68471 | D21: 45.47299
A22: 2017-12-10T12:00:00 | B22: 77.16672 | C22: 31.67323 | D22: 45.49349
A23: 2017-12-11 | B23: 77.16071 | C23: 31.62238 | D23: 45.53833
A24: 2017-12-11T12:00:00 | B24: 77.20582 | C24: 31.6519 | D24: 45.55392
A25: 2017-12-12 | B25: 77.22086 | C25: 31.6396 | D25: 45.58126
A26: 2017-12-12T12:00:00 | B26: 77.21484 | C26: 31.61745 | D26: 45.59739
A27: 2017-12-13 | B27: 77.20281 | C27: 31.46325 | D27: 45.73956
A28: 2017-12-13T12:00:00 | B28: 77.20281 | C28: 31.37303 | D28: 45.82978
A29: 2017-12-14 | B29: 77.25694 | C29: 31.41732 | D29: 45.83962
A30: 2017-12-14T12:00:00 | B30: 77.30506 | C30: 31.52641 | D30: 45.77865
A31: 2017-12-15 | B31: 77.27198 | C31: 31.39272 | D31: 45.87926
A32: 2017-12-15T12:00:00 | B32: 77.23589 | C32: 31.22867 | D32: 46.00722
A33: 2017-12-16 | B33: 77.23589 | C33: 31.04331 | D33: 46.19258
A34: 2017-12-16T12:00:00 | B34: 77.278 | C34: 31.04905 | D34: 46.22895
A35: 2017-12-17 | B35: 77.30206 | C35: 31.14091 | D35: 46.16115
A36: 2017-12-17T12:00:00 | B36: 77.29003 | C36: 31.18684 | D36: 46.10319
A37: 2017-12-18 | B37: 77.29003 | C37: 31.15978 | D37: 46.13025
A38: 2017-12-18T12:00:00 | B38: 77.30206 | C38: 31.15075 | D38: 46.15131
A39: 2017-12-19 | B39: 77.26897 | C39: 31.06627 | D39: 46.2027
A40: 2017-12-19T12:00:00 | B40: 77.26897 | C40: 30.89075 | D40: 46.37822
A41: 2017-12-20 | B41: 77.23589 | C41: 30.58481 | D41: 46.65108
A42: 2017-12-20T12:00:00 | B42: 77.34416 | C42: 30.89075 | D42: 46.45341
A43: 2017-12-21 | B43: 77.34416 | C43: 31.10072 | D43: 46.24344
A44: 2017-12-21T12:00:00 | B44: 77.35318 | C44: 31.26722 | D44: 46.08596
A45: 2017-12-22 | B45: 77.29604 | C45: 31.16388 | D45: 46.13216
A46: 2017-12-22T12:00:00 | B46: 77.30506 | C46: 31.09334 | D46: 46.21172
A47: 2017-12-23 | B47: 77.278 | C47: 31.07448 | D47: 46.20352
A48: 2017-12-23T12:00:00 | B48: 77.35318 | C48: 31.20407 | D48: 46.14911
A49: 2017-12-24 | B49: 77.37423 | C49: 31.38862 | D49: 45.98561
A50: 2017-12-24T12:00:00 | B50: 77.31108 | C50: 31.30331 | D50: 46.00777
A51: 2017-12-25 | B51: 77.29003 | C51: 31.13927 | D51: 46.15076
A52: 2017-12-25T12:00:00 | B52: 77.29905 | C52: 31.12943 | D52: 46.16962
A53: 2017-12-26 | B53: 77.3201 | C53: 31.18274 | D53: 46.13736
A54: 2017-12-26T12:00:00 | B54: 77.3622 | C54: 31.27461 | D54: 46.08759
A55: 2017-12-27 | B55: 77.33213 | C55: 31.22129 | D55: 46.11084
A56: 2017-12-27T12:00:00 | B56: 77.33213 | C56: 31.26148 | D56: 46.07065
A57: 2017-12-28 | B57: 77.3622 | C57: 31.27625 | D57: 46.08595
A58: 2017-12-28T12:00:00 | B58: 77.3201 | C58: 31.22867 | D58: 46.09143
A59: 2017-12-29 | B59: 77.29003 | C59: 31.08596 | D59: 46.20407
A60: 2017-12-29T12:00:00 | B60: 77.31108 | C60: 31.0835 | D60: 46.22758
A61: 2017-12-30 | B61: 77.26897 | C61: 30.93094 | D61: 46.33803
A62: 2017-12-30T12:00:00 | B62: 77.34416 | C62: 31.07448 | D62: 46.26968
A63: 2017-12-31 | B63: 77.36822 | C63: 31.17536 | D63: 46.19286
A64: 2017-12-31T12:00:00 | B64: 77.35318 | C64: 31.27051 | D64: 46.08267
A65: 2018-01-01 | B65: 77.34416 | C65: 31.26886 | D65: 46.0753
A66: 2018-01-01T12:00:00 | B66: 77.37423 | C66: 31.36975 | D66: 46.00448
A67: 2018-01-02 | B67: 77.36521 | C67: 31.4001 | D67: =B67-C67 -> 45.96511
A68: 2018-01-02T12:00:00 | B68: 77.37423 | C68: 31.4936 | D68: 45.88063
A69: 2018-01-03 | B69: 77.33213 | C69: 31.36729 | D69: 45.96484
A70: 2018-01-03T12:00:00 | B70: 77.33213 | C70: 31.26722 | D70: 46.06491
A71: 2018-01-04 | B71: 77.34416 | C71: 31.19997 | D71: 46.14419
A72: 2018-01-04T12:00:00 | B72: 77.35318 | C72: 31.1729 | D72: 46.18028
A73: 2018-01-05 | B73: 77.34416 | C73: 31.15404 | D73: 46.19012
A74: 2018-01-05T12:00:00 | B74: 77.3622 | C74: 31.177 | D74: 46.1852
A75: 2018-01-06 | B75: 77.35318 | C75: 31.08596 | D75: 46.26722
A76: 2018-01-06T12:00:00 | B76: 77.38326 | C76: 31.1081 | D76: 46.27516
A77: 2018-01-07 | B77: 77.38626 | C77: 31.12369 | D77: 46.26257
A78: 2018-01-07T12:00:00 | B78: 77.38025 | C78: 31.12779 | D78: 46.25246
A79: 2018-01-08 | B79: 77.33213 | C79: 30.98835 | D79: 46.34378
A80: 2018-01-08T12:00:00 | B80: 77.33213 | C80: 30.87352 | D80: 46.45861
A81: 2018-01-09 | B81: 77.31108 | C81: 30.69636 | D81: 46.61472
A82: 2018-01-09T12:00:00 | B82: 77.29003 | C82: 30.53396 | D82: 46.75607
A83: 2018-01-10 | B83: 77.34416 | C83: 30.56759 | D83: 46.77657
A84: 2018-01-10T12:00:00 | B84: 77.4013 | C84: 30.87927 | D84: 46.52203
A85: 2018-01-11 | B85: 77.38626 | C85: 31.02608 | D85: 46.36018
A86: 2018-01-11T12:00:00 | B86: 77.3592 | C86: 30.98835 | D86: 46.37085
A87: 2018-01-12 | B87: 77.37423 | C87: 30.96539 | D87: 46.40884
A88: 2018-01-12T12:00:00 | B88: 77.41032 | C88: 31.27461 | D88: 46.13571
A89: 2018-01-13 | B89: 77.4013 | C89: 31.34268 | D89: 46.05862
A90: 2018-01-13T12:00:00 | B90: 77.38927 | C90: 31.41732 | D90: 45.97195
A91: 2018-01-14 | B91: 77.36521 | C91: 31.4001 | D91: 45.96511
A92: 2018-01-14T12:00:00 | B92: 77.37423 | C92: 31.35991 | D92: 46.01432
A93: 2018-01-15 | B93: 77.34416 | C93: 31.2459 | D93: 46.09826
A94: 2018-01-15T12:00:00 | B94: 77.35318 | C94: 31.23442 | D94: 46.11876
A95: 2018-01-16 | B95: 77.33213 | C95: 31.12533 | D95: 46.2068
A96: 2018-01-16T12:00:00 | B96: 77.41634 | C96: 31.26312 | D96: 46.15322
A97: 2018-01-17 | B97: 77.37423 | C97: 31.26886 | D97: 46.10537
A98: 2018-01-17T12:00:00 | B98: 77.41634 | C98: 31.28609 | D98: 46.13025
A99: 2018-01-18 | B99: 77.33213 | C99: 31.00558 | D99: 46.32655
A100: 2018-01-18T12:00:00 | B100: 77.31108 | C100: 30.75951 | D100: 46.55157
A101: 2018-01-19 | B101: 77.35318 | C101: 30.72507 | D101: 46.62811
A102: 2018-01-19T12:00:00 | B102: 77.41634 | C102: 30.84482 | D102: 46.57152
A103: 2018-01-20 | B103: 77.40732 | C103: 30.90797 | D103: 46.49935
A104: 2018-01-20T12:00:00 | B104: 77.41032 | C104: 30.97113 | D104: 46.43919
A105: 2018-01-21 | B105: 77.42837 | C105: 31.05725 | D105: 46.37112
A106: 2018-01-21T12:00:00 | B106: 77.41634 | C106: 31.14255 | D106: 46.27379
A107: 2018-01-22 | B107: 77.40732 | C107: 31.08596 | D107: 46.32136
A108: 2018-01-22T12:00:00 | B108: 77.42837 | C108: 31.14255 | D108: 46.28582
A109: 2018-01-23 | B109: 77.4404 | C109: 31.23442 | D109: 46.20598
A110: 2018-01-23T12:00:00 | B110: 77.41634 | C110: 31.19423 | D110: 46.22211
A111: 2018-01-24 | B111: 77.38025 | C111: 30.99409 | D111: 46.38616
A112: 2018-01-24T12:00:00 | B112: 77.33213 | C112: 30.83415 | D112: 46.49798
A113: 2018-01-25 | B113: 77.34416 | C113: 30.63894 | D113: 46.70522
A114: 2018-01-25T12:00:00 | B114: 77.38927 | C114: 30.72835 | D114: 46.66092
A115: 2018-01-26 | B115: 77.42837 | C115: 30.90223 | D115: 46.52614
A116: 2018-01-26T12:00:00 | B116: 77.44942 | C116: 31.13681 | D116: 46.31261
A117: 2018-01-27 | B117: 77.40732 | C117: 31.14829 | D117: 46.25903
A118: 2018-01-27T12:00:00 | B118: 77.42837 | C118: 31.20161 | D118: 46.22676
A119: 2018-01-28 | B119: 77.46145 | C119: 31.31234 | D119: 46.14911
A120: 2018-01-28T12:00:00 | B120: 77.47047 | C120: 31.45751 | D120: 46.01296
A121: 2018-01-29 | B121: 77.43739 | C121: 31.40584 | D121: 46.03155
A122: 2018-01-29T12:00:00 | B122: 77.38626 | C122: 31.27461 | D122: 46.11165
A123: 2018-01-30 | B123: 77.34115 | C123: 30.95636 | D123: 46.38479
A124: 2018-01-30T12:00:00 | B124: 77.37423 | C124: 30.87352 | D124: 46.50071
A125: 2018-01-31 | B125: 77.41634 | C125: 31.02854 | D125: 46.3878
A126: 2018-01-31T12:00:00 | B126: 77.41634 | C126: 31.09334 | D126: 46.323
A127: 2018-02-01 | B127: 77.43739 | C127: 31.11795 | D127: 46.31944
A128: 2018-02-01T12:00:00 | B128: 77.4404 | C128: 31.19012 | D128: 46.25028
A129: 2018-02-02 | B129: 77.42235 | C129: 31.15978 | D129: 46.26257
A130: 2018-02-02T12:00:00 | B130: 77.43438 | C130: 31.18848 | D130: 46.2459
A131: 2018-02-03 | B131: 77.43438 | C131: 31.1081 | D131: =B131-C131 -> 46.32628
A132: 2018-02-03T12:00:00 | B132: 77.41634 | C132: 31.11385 | D132: 46.30249
A133: 2018-02-04 | B133: 77.43739 | C133: 31.09662 | D133: 46.34077
A134: 2018-02-04T12:00:00 | B134: 77.4404 | C134: 31.06873 | D134: 46.37167
A135: 2018-02-05 | B135: 77.4404 | C135: 30.94488 | D135: 46.49552
A136: 2018-02-05T12:00:00 | B136: 77.4404 | C136: 30.96539 | D136: 46.47501
A137: 2018-02-06 | B137: 77.44942 | C137: 30.96211 | D137: 46.48731
A138: 2018-02-06T12:00:00 | B138: 77.51258 | C138: 31.18274 | D138: 46.32984
A139: 2018-02-07 | B139: 77.50055 | C139: 31.2459 | D139: 46.25465
A140: 2018-02-07T12:00:00 | B140: 77.4825 | C140: 31.32054 | D140: 46.16196
A141: 2018-02-08 | B141: 77.46145 | C141: 31.24754 | D141: 46.21391
A142: 2018-02-08T12:00:00 | B142: 77.42837 | C142: 31.1081 | D142: 46.32027
A143: 2018-02-09 | B143: 77.41634 | C143: 30.92766 | D143: 46.48868
A144: 2018-02-09T12:00:00 | B144: 77.44942 | C144: 30.97933 | D144: 46.47009
A145: 2018-02-10 | B145: 77.42837 | C145: 30.88173 | D145: 46.54664
A146: 2018-02-10T12:00:00 | B146: 77.50355 | C146: 31.11385 | D146: 46.3897
A147: 2018-02-11 | B147: 77.46145 | C147: 31.05151 | D147: 46.40994
A148: 2018-02-11T12:00:00 | B148: 77.36822 | C148: 30.69062 | D148: 46.6776
A149: 2018-02-12 | B149: 77.4013 | C149: 30.6332 | D149: 46.7681
A150: 2018-02-12T12:00:00 | B150: 77.47047 | C150: 30.81857 | D150: 46.6519
A151: 2018-02-13 | B151: 77.50355 | C151: 31.08022 | D151: 46.42333
A152: 2018-02-13T12:00:00 | B152: 77.51258 | C152: 31.25738 | D152: 46.2552
A153: 2018-02-14 | B153: 77.42837 | C153: 31.05151 | D153: 46.37686
A154: 2018-02-14T12:00:00 | B154: 77.4404 | C154: 30.91946 | D154: 46.52094
A155: 2018-02-15 | B155: 77.4825 | C155: 30.98835 | D155: 46.49415
A156: 2018-02-15T12:00:00 | B156: 77.55468 | C156: 31.28773 | D156: 46.26695
A157: 2018-02-16 | B157: 77.48551 | C157: 31.32382 | D157: 46.16169
A158: 2018-02-16T12:00:00 | B158: 77.46145 | C158: 31.18274 | D158: 46.27871
A159: 2018-02-17 | B159: 77.46145 | C159: 31.09334 | D159: 46.36811
A160: 2018-02-17T12:00:00 | B160: 77.40732 | C160: 30.89649 | D160: 46.51083
A161: 2018-02-18 | B161: 77.37423 | C161: 30.51345 | D161: 46.86078
A162: 2018-02-18T12:00:00 | B162: 77.41634 | C162: 30.4872 | D162: 46.92914
A163: 2018-02-19 | B163: 77.41634 | C163: 30.53314 | D163: 46.8832
A164: 2018-02-19T12:00:00 | B164: 77.46145 | C164: 30.70784 | D164: 46.75361
A165: 2018-02-20 | B165: 77.49152 | C165: 30.93914 | D165: 46.55238
A166: 2018-02-20T12:00:00 | B166: 77.50355 | C166: 31.10482 | D166: 46.39873
A167: 2018-02-21 | B167: 77.46145 | C167: 31.08022 | D167: 46.38123
A168: 2018-02-21T12:00:00 | B168: 77.47047 | C168: 31.10482 | D168: 46.36565
A169: 2018-02-22 | B169: 77.41032 | C169: 30.92848 | D169: 46.48184
A170: 2018-02-22T12:00:00 | B170: 77.44942 | C170: 30.9334 | D170: 46.51602
A171: 2018-02-23 | B171: 77.4825 | C171: 31.05151 | D171: 46.43099
A172: 2018-02-23T12:00:00 | B172: 77.49152 | C172: 31.23852 | D172: 46.253
A173: 2018-02-24 | B173: 77.44942 | C173: 31.12533 | D173: 46.32409
A174: 2018-02-24T12:00:00 | B174: 77.38626 | C174: 30.85302 | D174: 46.53324
A175: 2018-02-25 | B175: 77.4825 | C175: 31.05315 | D175: 46.42935
A176: 2018-02-25T12:00:00 | B176: 77.44341 | C176: 31.03757 | D176: 46.40584
A177: 2018-02-26 | B177: 77.38626 | C177: 30.71358 | D177: 46.67268
A178: 2018-02-26T12:00:00 | B178: 77.44942 | C178: 30.8399 | D178: 46.60952
A179: 2018-02-27 | B179: 77.44942 | C179: 30.95062 | D179: 46.4988
A180: 2018-02-27T12:00:00 | B180: 77.46446 | C180: 31.06299 | D180: 46.40147
A181: 2018-02-28 | B181: 77.42837 | C181: 31.00558 | D181: 46.42279
A182: 2018-02-28T12:00:00 | B182: 77.4404 | C182: 30.98835 | D182: 46.45205
A183: 2018-03-01 | B183: 77.37423 | C183: 30.82267 | D183: 46.55156
A184: 2018-03-01T12:00:00 | B184: 77.35318 | C184: 30.62992 | D184: 46.72326
A185: 2018-03-02 | B185: 77.36521 | C185: 30.43061 | D185: 46.9346
A186: 2018-03-02T12:00:00 | B186: 77.47047 | C186: 30.70784 | D186: 46.76263
A187: 2018-03-03 | B187: 77.42235 | C187: 30.72178 | D187: 46.70057
A188: 2018-03-03T12:00:00 | B188: 77.43438 | C188: 30.78494 | D188: 46.64944
A189: 2018-03-04 | B189: 77.43438 | C189: 30.84154 | D189: 46.59284
A190: 2018-03-04T12:00:00 | B190: 77.47949 | C190: 31.03428 | D190: 46.44521
A191: 2018-03-05 | B191: 77.4825 | C191: 31.1729 | D191: 46.3096
A192: 2018-03-05T12:00:00 | B192: 77.46446 | C192: 31.27461 | D192: 46.18985
A193: 2018-03-06 | B193: 77.46145 | C193: 31.21555 | D193: 46.2459
A194: 2018-03-06T12:00:00 | B194: 77.46145 | C194: 31.25328 | D194: 46.20817
A195: 2018-03-07 | B195: 77.44942 | C195: 31.17864 | D195: =B195-C195 -> 46.27078
A196: 2018-03-07T12:00:00 | B196: 77.41634 | C196: 31.11631 | D196: 46.30003
A197: 2018-03-08 | B197: 77.41634 | C197: 30.9252 | D197: 46.49114
A198: 2018-03-08T12:00:00 | B198: 77.46145 | C198: 30.88747 | D198: 46.57398
A199: 2018-03-09 | B199: 77.43438 | C199: 30.81283 | D199: 46.62155
A200: 2018-03-09T12:00:00 | B200: 77.44341 | C200: 30.82021 | D200: 46.6232
... 532 more rows

Sheet Test Well #4 Zone 2
A1: Test Well #4 Zone 2
A2: Date and Time (24-hour) | B2: Absolute Pressure Above Logger (feet of water) | C2: Barometric Pressure from On-Site Logger (feet of water) | D2: Barometric Compensation (feet of water)
A3: 2017-12-01 | B3: 74.6525 | C3: 31.14665 | D3: =B3-C3 -> 43.50585
A4: 2017-12-01T12:00:00 | B4: 74.64348 | C4: 31.08596 | D4: 43.55752
A5: 2017-12-02 | B5: 74.60739 | C5: 30.97687 | D5: 43.63052
A6: 2017-12-02T12:00:00 | B6: 74.61642 | C6: 30.92192 | D6: 43.6945
A7: 2017-12-03 | B7: 74.4901 | C7: 30.68488 | D7: 43.80522
A8: 2017-12-03T12:00:00 | B8: 74.66153 | C8: 30.77428 | D8: 43.88725
A9: 2017-12-04 | B9: 74.851 | C9: 31.14091 | D9: 43.71009
A10: 2017-12-04T12:00:00 | B10: 74.91114 | C10: 31.32628 | D10: 43.58486
A11: 2017-12-05 | B11: 74.86002 | C11: 31.39846 | D11: 43.46156
A12: 2017-12-05T12:00:00 | B12: 74.92017 | C12: 31.53789 | D12: 43.38228
A13: 2017-12-06 | B13: 74.86002 | C13: 31.55922 | D13: 43.3008
A14: 2017-12-06T12:00:00 | B14: 74.94723 | C14: 31.70194 | D14: 43.24529
A15: 2017-12-07 | B15: 74.86904 | C15: 31.67897 | D15: 43.19007
A16: 2017-12-07T12:00:00 | B16: 74.90212 | C16: 31.70358 | D16: 43.19854
A17: 2017-12-08 | B17: 74.88408 | C17: 31.69209 | D17: 43.19199
A18: 2017-12-08T12:00:00 | B18: 74.90212 | C18: 31.69045 | D18: 43.21167
A19: 2017-12-09 | B19: 74.88408 | C19: 31.66913 | D19: 43.21495
A20: 2017-12-09T12:00:00 | B20: 74.92017 | C20: 31.68225 | D20: 43.23792
A21: 2017-12-10 | B21: 74.92919 | C21: 31.68471 | D21: 43.24448
A22: 2017-12-10T12:00:00 | B22: 74.94723 | C22: 31.67323 | D22: 43.274
A23: 2017-12-11 | B23: 74.92919 | C23: 31.62238 | D23: 43.30681
A24: 2017-12-11T12:00:00 | B24: 74.9743 | C24: 31.6519 | D24: 43.3224
A25: 2017-12-12 | B25: 74.98332 | C25: 31.6396 | D25: 43.34372
A26: 2017-12-12T12:00:00 | B26: 75.00137 | C26: 31.61745 | D26: 43.38392
A27: 2017-12-13 | B27: 74.92017 | C27: 31.46325 | D27: 43.45692
A28: 2017-12-13T12:00:00 | B28: 74.91114 | C28: 31.37303 | D28: 43.53811
A29: 2017-12-14 | B29: 74.98332 | C29: 31.41732 | D29: 43.566
A30: 2017-12-14T12:00:00 | B30: 75.07355 | C30: 31.52641 | D30: 43.54714
A31: 2017-12-15 | B31: 74.9743 | C31: 31.39272 | D31: 43.58158
A32: 2017-12-15T12:00:00 | B32: 74.92017 | C32: 31.22867 | D32: 43.6915
A33: 2017-12-16 | B33: 74.86904 | C33: 31.04331 | D33: 43.82573
A34: 2017-12-16T12:00:00 | B34: 74.94723 | C34: 31.04905 | D34: 43.89818
A35: 2017-12-17 | B35: 75.01039 | C35: 31.14091 | D35: =B35-C35 -> 43.86948
A36: 2017-12-17T12:00:00 | B36: 75.04648 | C36: 31.18684 | D36: 43.85964
A37: 2017-12-18 | B37: 75.00137 | C37: 31.15978 | D37: 43.84159
A38: 2017-12-18T12:00:00 | B38: 75.01941 | C38: 31.15075 | D38: 43.86866
A39: 2017-12-19 | B39: 74.95626 | C39: 31.06627 | D39: 43.88999
A40: 2017-12-19T12:00:00 | B40: 74.8931 | C40: 30.89075 | D40: 44.00235
A41: 2017-12-20 | B41: 74.76077 | C41: 30.58481 | D41: 44.17596
A42: 2017-12-20T12:00:00 | B42: 75.01941 | C42: 30.89075 | D42: 44.12866
A43: 2017-12-21 | B43: 75.09159 | C43: 31.10072 | D43: 43.99087
A44: 2017-12-21T12:00:00 | B44: 75.1367 | C44: 31.26722 | D44: 43.86948
A45: 2017-12-22 | B45: 75.00137 | C45: 31.16388 | D45: 43.83749
A46: 2017-12-22T12:00:00 | B46: 74.96528 | C46: 31.09334 | D46: 43.87194
A47: 2017-12-23 | B47: 74.95626 | C47: 31.07448 | D47: 43.88178
A48: 2017-12-23T12:00:00 | B48: 75.0555 | C48: 31.20407 | D48: 43.85143
A49: 2017-12-24 | B49: 75.10061 | C49: 31.38862 | D49: 43.71199
A50: 2017-12-24T12:00:00 | B50: 75.01039 | C50: 31.30331 | D50: 43.70708
A51: 2017-12-25 | B51: 74.91114 | C51: 31.13927 | D51: 43.77187
A52: 2017-12-25T12:00:00 | B52: 74.93821 | C52: 31.12943 | D52: 43.80878
A53: 2017-12-26 | B53: 74.96528 | C53: 31.18274 | D53: 43.78254
A54: 2017-12-26T12:00:00 | B54: 75.02843 | C54: 31.27461 | D54: 43.75382
A55: 2017-12-27 | B55: 74.96528 | C55: 31.22129 | D55: 43.74399
A56: 2017-12-27T12:00:00 | B56: 75.00137 | C56: 31.26148 | D56: 43.73989
A57: 2017-12-28 | B57: 74.99234 | C57: 31.27625 | D57: 43.71609
A58: 2017-12-28T12:00:00 | B58: 74.95626 | C58: 31.22867 | D58: 43.72759
A59: 2017-12-29 | B59: 74.87505 | C59: 31.08596 | D59: 43.78909
A60: 2017-12-29T12:00:00 | B60: 74.91114 | C60: 31.0835 | D60: 43.82764
A61: 2017-12-30 | B61: 74.84197 | C61: 30.93094 | D61: 43.91103
A62: 2017-12-30T12:00:00 | B62: 74.98332 | C62: 31.07448 | D62: 43.90884
A63: 2017-12-31 | B63: 74.99234 | C63: 31.17536 | D63: 43.81698
A64: 2017-12-31T12:00:00 | B64: 75.04648 | C64: 31.27051 | D64: 43.77597
A65: 2018-01-01 | B65: 74.98332 | C65: 31.26886 | D65: 43.71446
A66: 2018-01-01T12:00:00 | B66: 75.0555 | C66: 31.36975 | D66: 43.68575
A67: 2018-01-02 | B67: 75.01039 | C67: 31.4001 | D67: =B67-C67 -> 43.61029
A68: 2018-01-02T12:00:00 | B68: 75.07355 | C68: 31.4936 | D68: 43.57995
A69: 2018-01-03 | B69: 74.93821 | C69: 31.36729 | D69: 43.57092
A70: 2018-01-03T12:00:00 | B70: 74.92017 | C70: 31.26722 | D70: 43.65295
A71: 2018-01-04 | B71: 74.88408 | C71: 31.19997 | D71: 43.68411
A72: 2018-01-04T12:00:00 | B72: 74.93821 | C72: 31.1729 | D72: 43.76531
A73: 2018-01-05 | B73: 74.92919 | C73: 31.15404 | D73: 43.77515
A74: 2018-01-05T12:00:00 | B74: 74.98332 | C74: 31.177 | D74: 43.80632
A75: 2018-01-06 | B75: 74.92017 | C75: 31.08596 | D75: 43.83421
A76: 2018-01-06T12:00:00 | B76: 74.9743 | C76: 31.1081 | D76: 43.8662
A77: 2018-01-07 | B77: 74.98332 | C77: 31.12369 | D77: 43.85963
A78: 2018-01-07T12:00:00 | B78: 74.98332 | C78: 31.12779 | D78: 43.85553
A79: 2018-01-08 | B79: 74.8931 | C79: 30.98835 | D79: 43.90475
A80: 2018-01-08T12:00:00 | B80: 74.86002 | C80: 30.87352 | D80: 43.9865
A81: 2018-01-09 | B81: 74.78784 | C81: 30.69636 | D81: 44.09148
A82: 2018-01-09T12:00:00 | B82: 74.76077 | C82: 30.53396 | D82: 44.22681
A83: 2018-01-10 | B83: 74.84197 | C83: 30.56759 | D83: 44.27438
A84: 2018-01-10T12:00:00 | B84: 75.03746 | C84: 30.87927 | D84: 44.15819
A85: 2018-01-11 | B85: 75.02843 | C85: 31.02608 | D85: 44.00235
A86: 2018-01-11T12:00:00 | B86: 74.95626 | C86: 30.98835 | D86: 43.96791
A87: 2018-01-12 | B87: 74.93821 | C87: 30.96539 | D87: 43.97282
A88: 2018-01-12T12:00:00 | B88: 75.09159 | C88: 31.27461 | D88: 43.81698
A89: 2018-01-13 | B89: 75.04648 | C89: 31.34268 | D89: 43.7038
A90: 2018-01-13T12:00:00 | B90: 75.03746 | C90: 31.41732 | D90: 43.62014
A91: 2018-01-14 | B91: 74.9743 | C91: 31.4001 | D91: 43.5742
A92: 2018-01-14T12:00:00 | B92: 74.94723 | C92: 31.35991 | D92: 43.58732
A93: 2018-01-15 | B93: 74.87505 | C93: 31.2459 | D93: 43.62915
A94: 2018-01-15T12:00:00 | B94: 74.90212 | C94: 31.23442 | D94: 43.6677
A95: 2018-01-16 | B95: 74.851 | C95: 31.12533 | D95: 43.72567
A96: 2018-01-16T12:00:00 | B96: 74.98332 | C96: 31.26312 | D96: 43.7202
A97: 2018-01-17 | B97: 74.94723 | C97: 31.26886 | D97: 43.67837
A98: 2018-01-17T12:00:00 | B98: 74.98332 | C98: 31.28609 | D98: 43.69723
A99: 2018-01-18 | B99: 74.78784 | C99: 31.00558 | D99: =B99-C99 -> 43.78226
A100: 2018-01-18T12:00:00 | B100: 74.72468 | C100: 30.75951 | D100: 43.96517
A101: 2018-01-19 | B101: 74.77882 | C101: 30.72507 | D101: 44.05375
A102: 2018-01-19T12:00:00 | B102: 74.91114 | C102: 30.84482 | D102: 44.06632
A103: 2018-01-20 | B103: 74.92919 | C103: 30.90797 | D103: 44.02122
A104: 2018-01-20T12:00:00 | B104: 74.94723 | C104: 30.97113 | D104: 43.9761
A105: 2018-01-21 | B105: 74.96528 | C105: 31.05725 | D105: 43.90803
A106: 2018-01-21T12:00:00 | B106: 74.99234 | C106: 31.14255 | D106: 43.84979
A107: 2018-01-22 | B107: 74.92919 | C107: 31.08596 | D107: 43.84323
A108: 2018-01-22T12:00:00 | B108: 74.98332 | C108: 31.14255 | D108: 43.84077
A109: 2018-01-23 | B109: 75.00137 | C109: 31.23442 | D109: 43.76695
A110: 2018-01-23T12:00:00 | B110: 74.92919 | C110: 31.19423 | D110: 43.73496
A111: 2018-01-24 | B111: 74.80588 | C111: 30.99409 | D111: 43.81179
A112: 2018-01-24T12:00:00 | B112: 74.75175 | C112: 30.83415 | D112: 43.9176
A113: 2018-01-25 | B113: 74.68859 | C113: 30.63894 | D113: 44.04965
A114: 2018-01-25T12:00:00 | B114: 74.81491 | C114: 30.72835 | D114: 44.08656
A115: 2018-01-26 | B115: 74.91114 | C115: 30.90223 | D115: 44.00891
A116: 2018-01-26T12:00:00 | B116: 75.01039 | C116: 31.13681 | D116: 43.87358
A117: 2018-01-27 | B117: 74.93821 | C117: 31.14829 | D117: 43.78992
A118: 2018-01-27T12:00:00 | B118: 74.95626 | C118: 31.20161 | D118: 43.75465
A119: 2018-01-28 | B119: 74.96528 | C119: 31.31234 | D119: 43.65294
A120: 2018-01-28T12:00:00 | B120: 75.02843 | C120: 31.45751 | D120: 43.57092
A121: 2018-01-29 | B121: 74.92017 | C121: 31.40584 | D121: 43.51433
A122: 2018-01-29T12:00:00 | B122: 74.86002 | C122: 31.27461 | D122: 43.58541
A123: 2018-01-30 | B123: 74.67055 | C123: 30.95636 | D123: 43.71419
A124: 2018-01-30T12:00:00 | B124: 74.72468 | C124: 30.87352 | D124: 43.85116
A125: 2018-01-31 | B125: 74.82393 | C125: 31.02854 | D125: 43.79539
A126: 2018-01-31T12:00:00 | B126: 74.88408 | C126: 31.09334 | D126: 43.79074
A127: 2018-02-01 | B127: 74.87505 | C127: 31.11795 | D127: 43.7571
A128: 2018-02-01T12:00:00 | B128: 74.92017 | C128: 31.19012 | D128: 43.73005
A129: 2018-02-02 | B129: 74.86904 | C129: 31.15978 | D129: 43.70926
A130: 2018-02-02T12:00:00 | B130: 74.90212 | C130: 31.18848 | D130: 43.71364
A131: 2018-02-03 | B131: 74.851 | C131: 31.1081 | D131: =B131-C131 -> 43.7429
A132: 2018-02-03T12:00:00 | B132: 74.86904 | C132: 31.11385 | D132: 43.75519
A133: 2018-02-04 | B133: 74.86002 | C133: 31.09662 | D133: 43.7634
A134: 2018-02-04T12:00:00 | B134: 74.86002 | C134: 31.06873 | D134: 43.79129
A135: 2018-02-05 | B135: 74.79686 | C135: 30.94488 | D135: 43.85198
A136: 2018-02-05T12:00:00 | B136: 74.83295 | C136: 30.96539 | D136: 43.86756
A137: 2018-02-06 | B137: 74.851 | C137: 30.96211 | D137: 43.88889
A138: 2018-02-06T12:00:00 | B138: 74.9743 | C138: 31.18274 | D138: 43.79156
A139: 2018-02-07 | B139: 74.96528 | C139: 31.2459 | D139: 43.71938
A140: 2018-02-07T12:00:00 | B140: 74.98332 | C140: 31.32054 | D140: 43.66278
A141: 2018-02-08 | B141: 74.8931 | C141: 31.24754 | D141: 43.64556
A142: 2018-02-08T12:00:00 | B142: 74.82393 | C142: 31.1081 | D142: 43.71583
A143: 2018-02-09 | B143: 74.75175 | C143: 30.92766 | D143: 43.82409
A144: 2018-02-09T12:00:00 | B144: 74.82393 | C144: 30.97933 | D144: 43.8446
A145: 2018-02-10 | B145: 74.76979 | C145: 30.88173 | D145: 43.88806
A146: 2018-02-10T12:00:00 | B146: 74.94723 | C146: 31.11385 | D146: 43.83338
A147: 2018-02-11 | B147: 74.851 | C147: 31.05151 | D147: 43.79949
A148: 2018-02-11T12:00:00 | B148: 74.63446 | C148: 30.69062 | D148: 43.94384
A149: 2018-02-12 | B149: 74.67957 | C149: 30.6332 | D149: 44.04637
A150: 2018-02-12T12:00:00 | B150: 74.83295 | C150: 30.81857 | D150: 44.01438
A151: 2018-02-13 | B151: 74.94723 | C151: 31.08022 | D151: 43.86701
A152: 2018-02-13T12:00:00 | B152: 74.99234 | C152: 31.25738 | D152: 43.73496
A153: 2018-02-14 | B153: 74.79686 | C153: 31.05151 | D153: 43.74535
A154: 2018-02-14T12:00:00 | B154: 74.76979 | C154: 30.88501 | D154: 43.88478
A155: 2018-02-15 | B155: 74.83295 | C155: 30.98835 | D155: 43.8446
A156: 2018-02-15T12:00:00 | B156: 75.01039 | C156: 31.28773 | D156: 43.72266
A157: 2018-02-16 | B157: 74.92919 | C157: 31.32382 | D157: 43.60537
A158: 2018-02-16T12:00:00 | B158: 74.83295 | C158: 31.18274 | D158: 43.65021
A159: 2018-02-17 | B159: 74.79686 | C159: 31.09334 | D159: 43.70352
A160: 2018-02-17T12:00:00 | B160: 74.69762 | C160: 30.89649 | D160: 43.80113
A161: 2018-02-18 | B161: 74.53521 | C161: 30.51345 | D161: 44.02176
A162: 2018-02-18T12:00:00 | B162: 74.61642 | C162: 30.4872 | D162: 44.12922
A163: 2018-02-19 | B163: 74.68859 | C163: 30.53314 | D163: =B163-C163 -> 44.15545
A164: 2018-02-19T12:00:00 | B164: 74.79686 | C164: 30.70784 | D164: 44.08902
A165: 2018-02-20 | B165: 74.91114 | C165: 30.93914 | D165: 43.972
A166: 2018-02-20T12:00:00 | B166: 74.92919 | C166: 31.10482 | D166: 43.82437
A167: 2018-02-21 | B167: 74.84197 | C167: 31.08022 | D167: 43.76175
A168: 2018-02-21T12:00:00 | B168: 74.83295 | C168: 31.10482 | D168: 43.72813
A169: 2018-02-22 | B169: 74.71566 | C169: 30.92848 | D169: 43.78718
A170: 2018-02-22T12:00:00 | B170: 74.76077 | C170: 30.9334 | D170: 43.82737
A171: 2018-02-23 | B171: 74.81491 | C171: 31.05151 | D171: 43.7634
A172: 2018-02-23T12:00:00 | B172: 74.88408 | C172: 31.23852 | D172: 43.64556
A173: 2018-02-24 | B173: 74.76979 | C173: 31.12533 | D173: 43.64446
A174: 2018-02-24T12:00:00 | B174: 74.62544 | C174: 30.85302 | D174: 43.77242
A175: 2018-02-25 | B175: 74.77882 | C175: 31.05315 | D175: 43.72567
A176: 2018-02-25T12:00:00 | B176: 74.76077 | C176: 31.03757 | D176: 43.7232
A177: 2018-02-26 | B177: 74.5713 | C177: 30.71358 | D177: 43.85772
A178: 2018-02-26T12:00:00 | B178: 74.72468 | C178: 30.8399 | D178: 43.88478
A179: 2018-02-27 | B179: 74.76979 | C179: 30.95062 | D179: 43.81917
A180: 2018-02-27T12:00:00 | B180: 74.82393 | C180: 31.06299 | D180: 43.76094
A181: 2018-02-28 | B181: 74.74273 | C181: 31.00558 | D181: 43.73715
A182: 2018-02-28T12:00:00 | B182: 74.72468 | C182: 30.98835 | D182: 43.73633
A183: 2018-03-01 | B183: 74.62544 | C183: 30.82267 | D183: 43.80277
A184: 2018-03-01T12:00:00 | B184: 74.55326 | C184: 30.62992 | D184: 43.92334
A185: 2018-03-02 | B185: 74.4901 | C185: 30.43061 | D185: 44.05949
A186: 2018-03-02T12:00:00 | B186: 74.75175 | C186: 30.70784 | D186: 44.04391
A187: 2018-03-03 | B187: 74.69762 | C187: 30.72178 | D187: 43.97584
A188: 2018-03-03T12:00:00 | B188: 74.73371 | C188: 30.78494 | D188: 43.94877
A189: 2018-03-04 | B189: 74.73371 | C189: 30.84154 | D189: 43.89217
A190: 2018-03-04T12:00:00 | B190: 74.82393 | C190: 31.03428 | D190: 43.78965
A191: 2018-03-05 | B191: 74.84197 | C191: 31.1729 | D191: 43.66907
A192: 2018-03-05T12:00:00 | B192: 74.83295 | C192: 31.27461 | D192: 43.55834
A193: 2018-03-06 | B193: 74.76077 | C193: 31.21555 | D193: 43.54522
A194: 2018-03-06T12:00:00 | B194: 74.75175 | C194: 31.25328 | D194: 43.49847
A195: 2018-03-07 | B195: 74.71566 | C195: 31.17864 | D195: =B195-C195 -> 43.53702
A196: 2018-03-07T12:00:00 | B196: 74.66153 | C196: 31.11631 | D196: 43.54522
A197: 2018-03-08 | B197: 74.58033 | C197: 30.9252 | D197: 43.65513
A198: 2018-03-08T12:00:00 | B198: 74.61642 | C198: 30.88747 | D198: 43.72895
A199: 2018-03-09 | B199: 74.60739 | C199: 30.81283 | D199: 43.79456
A200: 2018-03-09T12:00:00 | B200: 74.62244 | C200: 30.82021 | D200: =B200-C200 -> 43.80223
... 523 more rows

Sheet Test Well #4 Zone 3
A1: Test Well #4 Zone 3
A2: Date and Time (24-hour) | B2: Absolute Pressure Above Logger (feet of water) | C2: Barometric Pressure from On-Site Logger (feet of water) | D2: Barometric Compensation (feet of water)
A3: 2017-12-01 | B3: 69.38047 | C3: 31.14665 | D3: 38.23382
A4: 2017-12-01T12:00:00 | B4: 69.38047 | C4: 31.08596 | D4: 38.29451
A5: 2017-12-02 | B5: 69.38949 | C5: 30.97687 | D5: 38.41262
A6: 2017-12-02T12:00:00 | B6: 69.38949 | C6: 30.92192 | D6: 38.46757
A7: 2017-12-03 | B7: 69.3534 | C7: 30.68488 | D7: 38.66852
A8: 2017-12-03T12:00:00 | B8: 69.41656 | C8: 30.77428 | D8: 38.64228
A9: 2017-12-04 | B9: 69.47069 | C9: 31.14091 | D9: 38.32978
A10: 2017-12-04T12:00:00 | B10: 69.47069 | C10: 31.32628 | D10: 38.14441
A11: 2017-12-05 | B11: 69.45265 | C11: 31.39846 | D11: 38.05419
A12: 2017-12-05T12:00:00 | B12: 69.47069 | C12: 31.53789 | D12: 37.9328
A13: 2017-12-06 | B13: 69.47069 | C13: 31.55922 | D13: 37.91147
A14: 2017-12-06T12:00:00 | B14: 69.5158 | C14: 31.70194 | D14: 37.81386
A15: 2017-12-07 | B15: 69.5158 | C15: 31.67897 | D15: 37.83683
A16: 2017-12-07T12:00:00 | B16: 69.56994 | C16: 31.70358 | D16: 37.86636
A17: 2017-12-08 | B17: 69.597 | C17: 31.69209 | D17: 37.90491
A18: 2017-12-08T12:00:00 | B18: 69.61505 | C18: 31.69045 | D18: 37.9246
A19: 2017-12-09 | B19: 69.65114 | C19: 31.66913 | D19: 37.98201
A20: 2017-12-09T12:00:00 | B20: 69.68723 | C20: 31.68225 | D20: 38.00498
A21: 2017-12-10 | B21: 69.71429 | C21: 31.68471 | D21: 38.02958
A22: 2017-12-10T12:00:00 | B22: 69.72332 | C22: 31.67323 | D22: 38.05009
A23: 2017-12-11 | B23: 69.75038 | C23: 31.62238 | D23: 38.128
A24: 2017-12-11T12:00:00 | B24: 69.76542 | C24: 31.6519 | D24: 38.11352
A25: 2017-12-12 | B25: 69.77444 | C25: 31.6396 | D25: 38.13484
A26: 2017-12-12T12:00:00 | B26: 69.79249 | C26: 31.61745 | D26: 38.17504
A27: 2017-12-13 | B27: 69.78346 | C27: 31.46325 | D27: 38.32021
A28: 2017-12-13T12:00:00 | B28: 69.78346 | C28: 31.37303 | D28: 38.41043
A29: 2017-12-14 | B29: 69.81955 | C29: 31.41732 | D29: 38.40223
A30: 2017-12-14T12:00:00 | B30: 69.84662 | C30: 31.52641 | D30: 38.32021
A31: 2017-12-15 | B31: 69.79549 | C31: 31.39272 | D31: 38.40277
A32: 2017-12-15T12:00:00 | B32: 69.77444 | C32: 31.22867 | D32: 38.54577
A33: 2017-12-16 | B33: 69.77444 | C33: 31.04331 | D33: 38.73113
A34: 2017-12-16T12:00:00 | B34: 69.78346 | C34: 31.04905 | D34: 38.73441
A35: 2017-12-17 | B35: 69.79249 | C35: 31.14091 | D35: 38.65158
A36: 2017-12-17T12:00:00 | B36: 69.79249 | C36: 31.18684 | D36: 38.60565
A37: 2017-12-18 | B37: 69.75941 | C37: 31.15978 | D37: 38.59963
A38: 2017-12-18T12:00:00 | B38: 69.74136 | C38: 31.15075 | D38: 38.59061
A39: 2017-12-19 | B39: 69.71429 | C39: 31.06627 | D39: 38.64802
A40: 2017-12-19T12:00:00 | B40: 69.6782 | C40: 30.89075 | D40: 38.78745
A41: 2017-12-20 | B41: 69.63309 | C41: 30.58481 | D41: 39.04828
A42: 2017-12-20T12:00:00 | B42: 69.69625 | C42: 30.89075 | D42: 38.8055
A43: 2017-12-21 | B43: 69.68723 | C43: 31.10072 | D43: 38.58651
A44: 2017-12-21T12:00:00 | B44: 69.68723 | C44: 31.26722 | D44: 38.42001
A45: 2017-12-22 | B45: 69.63309 | C45: 31.16388 | D45: 38.46921
A46: 2017-12-22T12:00:00 | B46: 69.60001 | C46: 31.09334 | D46: 38.50667
A47: 2017-12-23 | B47: 69.60903 | C47: 31.07448 | D47: 38.53455
A48: 2017-12-23T12:00:00 | B48: 69.64512 | C48: 31.20407 | D48: 38.44105
A49: 2017-12-24 | B49: 69.66016 | C49: 31.38862 | D49: 38.27154
A50: 2017-12-24T12:00:00 | B50: 69.61806 | C50: 31.30331 | D50: 38.31475
A51: 2017-12-25 | B51: 69.61505 | C51: 31.13927 | D51: 38.47578
A52: 2017-12-25T12:00:00 | B52: 69.63309 | C52: 31.12943 | D52: 38.50366
A53: 2017-12-26 | B53: 69.64512 | C53: 31.18274 | D53: 38.46238
A54: 2017-12-26T12:00:00 | B54: 69.66918 | C54: 31.27461 | D54: 38.39457
A55: 2017-12-27 | B55: 69.66016 | C55: 31.22129 | D55: 38.43887
A56: 2017-12-27T12:00:00 | B56: 69.66317 | C56: 31.26148 | D56: 38.40169
A57: 2017-12-28 | B57: 69.6782 | C57: 31.27625 | D57: 38.40195
A58: 2017-12-28T12:00:00 | B58: 69.65114 | C58: 31.22867 | D58: 38.42247
A59: 2017-12-29 | B59: 69.64212 | C59: 31.08596 | D59: 38.55616
A60: 2017-12-29T12:00:00 | B60: 69.66317 | C60: 31.0835 | D60: 38.57967
A61: 2017-12-30 | B61: 69.6361 | C61: 30.93094 | D61: 38.70516
A62: 2017-12-30T12:00:00 | B62: 69.68723 | C62: 31.07448 | D62: 38.61275
A63: 2017-12-31 | B63: 69.6782 | C63: 31.17536 | D63: 38.50284
A64: 2017-12-31T12:00:00 | B64: 69.68723 | C64: 31.27051 | D64: 38.41672
A65: 2018-01-01 | B65: 69.65414 | C65: 31.26886 | D65: 38.38528
A66: 2018-01-01T12:00:00 | B66: 69.6782 | C66: 31.36975 | D66: 38.30845
A67: 2018-01-02 | B67: 69.6782 | C67: 31.4001 | D67: 38.2781
A68: 2018-01-02T12:00:00 | B68: 69.70527 | C68: 31.4936 | D68: 38.21167
A69: 2018-01-03 | B69: 69.6782 | C69: 31.36729 | D69: 38.31091
A70: 2018-01-03T12:00:00 | B70: 69.6782 | C70: 31.26722 | D70: 38.41098
A71: 2018-01-04 | B71: 69.68723 | C71: 31.19997 | D71: 38.48726
A72: 2018-01-04T12:00:00 | B72: 69.70527 | C72: 31.1729 | D72: 38.53237
A73: 2018-01-05 | B73: 69.70527 | C73: 31.15404 | D73: 38.55123
A74: 2018-01-05T12:00:00 | B74: 69.72332 | C74: 31.177 | D74: 38.54632
A75: 2018-01-06 | B75: 69.69625 | C75: 31.08596 | D75: 38.61029
A76: 2018-01-06T12:00:00 | B76: 69.71429 | C76: 31.1081 | D76: 38.60619
A77: 2018-01-07 | B77: 69.70527 | C77: 31.12369 | D77: 38.58158
A78: 2018-01-07T12:00:00 | B78: 69.71429 | C78: 31.12779 | D78: 38.5865
A79: 2018-01-08 | B79: 69.66918 | C79: 30.98835 | D79: 38.68083
A80: 2018-01-08T12:00:00 | B80: 69.65414 | C80: 30.87352 | D80: 38.78062
A81: 2018-01-09 | B81: 69.64512 | C81: 30.69636 | D81: 38.94876
A82: 2018-01-09T12:00:00 | B82: 69.61806 | C82: 30.53396 | D82: 39.0841
A83: 2018-01-10 | B83: 69.64512 | C83: 30.56759 | D83: 39.07753
A84: 2018-01-10T12:00:00 | B84: 69.6782 | C84: 30.87927 | D84: 38.79893
A85: 2018-01-11 | B85: 69.65414 | C85: 31.02608 | D85: 38.62806
A86: 2018-01-11T12:00:00 | B86: 69.59099 | C86: 30.98835 | D86: 38.60264
A87: 2018-01-12 | B87: 69.60903 | C87: 30.96539 | D87: 38.64364
A88: 2018-01-12T12:00:00 | B88: 69.6361 | C88: 31.27461 | D88: 38.36149
A89: 2018-01-13 | B89: 69.61806 | C89: 31.34268 | D89: 38.27538
A90: 2018-01-13T12:00:00 | B90: 69.60903 | C90: 31.41732 | D90: 38.19171
A91: 2018-01-14 | B91: 69.61806 | C91: 31.4001 | D91: 38.21796
A92: 2018-01-14T12:00:00 | B92: 69.60903 | C92: 31.35991 | D92: 38.24912
A93: 2018-01-15 | B93: 69.61806 | C93: 31.2459 | D93: 38.37216
A94: 2018-01-15T12:00:00 | B94: 69.65414 | C94: 31.23442 | D94: 38.41972
A95: 2018-01-16 | B95: 69.64512 | C95: 31.12533 | D95: 38.51979
A96: 2018-01-16T12:00:00 | B96: 69.71429 | C96: 31.26312 | D96: 38.45117
A97: 2018-01-17 | B97: 69.68723 | C97: 31.26886 | D97: 38.41837
A98: 2018-01-17T12:00:00 | B98: 69.71429 | C98: 31.28609 | D98: 38.4282
A99: 2018-01-18 | B99: 69.65414 | C99: 31.00558 | D99: 38.64856
A100: 2018-01-18T12:00:00 | B100: 69.6361 | C100: 30.75951 | D100: 38.87659
A101: 2018-01-19 | B101: 69.6782 | C101: 30.72507 | D101: 38.95313
A102: 2018-01-19T12:00:00 | B102: 69.70527 | C102: 30.84482 | D102: 38.86045
A103: 2018-01-20 | B103: 69.68723 | C103: 30.90797 | D103: 38.77926
A104: 2018-01-20T12:00:00 | B104: 69.6782 | C104: 30.97113 | D104: 38.70707
A105: 2018-01-21 | B105: 69.6782 | C105: 31.05725 | D105: 38.62095
A106: 2018-01-21T12:00:00 | B106: 69.66918 | C106: 31.14255 | D106: 38.52663
A107: 2018-01-22 | B107: 69.65414 | C107: 31.08596 | D107: 38.56818
A108: 2018-01-22T12:00:00 | B108: 69.66317 | C108: 31.14255 | D108: 38.52062
A109: 2018-01-23 | B109: 69.6782 | C109: 31.23442 | D109: 38.44378
A110: 2018-01-23T12:00:00 | B110: 69.64512 | C110: 31.19423 | D110: 38.45089
A111: 2018-01-24 | B111: 69.62708 | C111: 30.99409 | D111: 38.63299
A112: 2018-01-24T12:00:00 | B112: 69.61806 | C112: 30.83415 | D112: 38.78391
A113: 2018-01-25 | B113: 69.60903 | C113: 30.63894 | D113: 38.97009
A114: 2018-01-25T12:00:00 | B114: 69.64512 | C114: 30.72835 | D114: 38.91677
A115: 2018-01-26 | B115: 69.66918 | C115: 30.90223 | D115: 38.76695
A116: 2018-01-26T12:00:00 | B116: 69.66918 | C116: 31.13681 | D116: 38.53237
A117: 2018-01-27 | B117: 69.6361 | C117: 31.14829 | D117: 38.48781
A118: 2018-01-27T12:00:00 | B118: 69.64512 | C118: 31.20161 | D118: 38.44351
A119: 2018-01-28 | B119: 69.66317 | C119: 31.31234 | D119: 38.35083
A120: 2018-01-28T12:00:00 | B120: 69.66317 | C120: 31.45751 | D120: 38.20566
A121: 2018-01-29 | B121: 69.66317 | C121: 31.40584 | D121: 38.25733
A122: 2018-01-29T12:00:00 | B122: 69.64512 | C122: 31.27461 | D122: 38.37051
A123: 2018-01-30 | B123: 69.60001 | C123: 30.95636 | D123: 38.64365
A124: 2018-01-30T12:00:00 | B124: 69.6361 | C124: 30.87352 | D124: 38.76258
A125: 2018-01-31 | B125: 69.69625 | C125: 31.02854 | D125: 38.66771
A126: 2018-01-31T12:00:00 | B126: 69.69625 | C126: 31.09334 | D126: 38.60291
A127: 2018-02-01 | B127: 69.70527 | C127: 31.11795 | D127: 38.58732
A128: 2018-02-01T12:00:00 | B128: 69.70527 | C128: 31.19012 | D128: 38.51515
A129: 2018-02-02 | B129: 69.6782 | C129: 31.15978 | D129: 38.51842
A130: 2018-02-02T12:00:00 | B130: 69.70527 | C130: 31.18848 | D130: 38.51679
A131: 2018-02-03 | B131: 69.69625 | C131: 31.1081 | D131: 38.58815
A132: 2018-02-03T12:00:00 | B132: 69.69625 | C132: 31.11385 | D132: 38.5824
A133: 2018-02-04 | B133: 69.69625 | C133: 31.09662 | D133: 38.59963
A134: 2018-02-04T12:00:00 | B134: 69.69625 | C134: 31.06873 | D134: 38.62752
A135: 2018-02-05 | B135: 69.6782 | C135: 30.94488 | D135: 38.73332
A136: 2018-02-05T12:00:00 | B136: 69.68723 | C136: 30.96539 | D136: 38.72184
A137: 2018-02-06 | B137: 69.68723 | C137: 30.96211 | D137: 38.72512
A138: 2018-02-06T12:00:00 | B138: 69.72332 | C138: 31.18274 | D138: 38.54058
A139: 2018-02-07 | B139: 69.72332 | C139: 31.2459 | D139: 38.47742
A140: 2018-02-07T12:00:00 | B140: 69.71429 | C140: 31.32054 | D140: 38.39375
A141: 2018-02-08 | B141: 69.68723 | C141: 31.24754 | D141: 38.43969
A142: 2018-02-08T12:00:00 | B142: 69.6782 | C142: 31.1081 | D142: 38.5701
A143: 2018-02-09 | B143: 69.66918 | C143: 30.92766 | D143: 38.74152
A144: 2018-02-09T12:00:00 | B144: 69.70527 | C144: 30.97933 | D144: 38.72594
A145: 2018-02-10 | B145: 69.68723 | C145: 30.88173 | D145: 38.8055
A146: 2018-02-10T12:00:00 | B146: 69.73234 | C146: 31.11385 | D146: 38.61849
A147: 2018-02-11 | B147: 69.69625 | C147: 31.05151 | D147: 38.64474
A148: 2018-02-11T12:00:00 | B148: 69.62708 | C148: 30.69062 | D148: 38.93646
A149: 2018-02-12 | B149: 69.64512 | C149: 30.6332 | D149: 39.01192
A150: 2018-02-12T12:00:00 | B150: 69.68723 | C150: 30.81857 | D150: 38.86866
A151: 2018-02-13 | B151: 69.71429 | C151: 31.08022 | D151: 38.63407
A152: 2018-02-13T12:00:00 | B152: 69.69625 | C152: 31.25738 | D152: 38.43887
A153: 2018-02-14 | B153: 69.6361 | C153: 31.05151 | D153: 38.58459
A154: 2018-02-14T12:00:00 | B154: 69.6361 | C154: 30.88501 | D154: 38.75109
A155: 2018-02-15 | B155: 69.66918 | C155: 30.98835 | D155: 38.68083
A156: 2018-02-15T12:00:00 | B156: 69.70527 | C156: 31.28773 | D156: 38.41754
A157: 2018-02-16 | B157: 69.6782 | C157: 31.32382 | D157: 38.35438
A158: 2018-02-16T12:00:00 | B158: 69.66016 | C158: 31.18274 | D158: 38.47742
A159: 2018-02-17 | B159: 69.66317 | C159: 31.09334 | D159: 38.56983
A160: 2018-02-17T12:00:00 | B160: 69.6361 | C160: 30.89649 | D160: 38.73961
A161: 2018-02-18 | B161: 69.60903 | C161: 30.51345 | D161: 39.09558
A162: 2018-02-18T12:00:00 | B162: 69.62708 | C162: 30.4872 | D162: 39.13988
A163: 2018-02-19 | B163: 69.64212 | C163: 30.53314 | D163: 39.10898
A164: 2018-02-19T12:00:00 | B164: 69.66016 | C164: 30.70784 | D164: 38.95232
A165: 2018-02-20 | B165: 69.6782 | C165: 30.93914 | D165: 38.73906
A166: 2018-02-20T12:00:00 | B166: 69.65114 | C166: 31.10482 | D166: 38.54632
A167: 2018-02-21 | B167: 69.61505 | C167: 31.08022 | D167: 38.53483
A168: 2018-02-21T12:00:00 | B168: 69.61505 | C168: 31.10482 | D168: 38.51023
A169: 2018-02-22 | B169: 69.57896 | C169: 30.92848 | D169: 38.65048
A170: 2018-02-22T12:00:00 | B170: 69.60603 | C170: 30.9334 | D170: 38.67263
A171: 2018-02-23 | B171: 69.62708 | C171: 31.05151 | D171: 38.57557
A172: 2018-02-23T12:00:00 | B172: 69.65114 | C172: 31.23852 | D172: 38.41262
A173: 2018-02-24 | B173: 69.61806 | C173: 31.12533 | D173: 38.49273
A174: 2018-02-24T12:00:00 | B174: 69.58798 | C174: 30.85302 | D174: 38.73496
A175: 2018-02-25 | B175: 69.66918 | C175: 31.05315 | D175: 38.61603
A176: 2018-02-25T12:00:00 | B176: 69.65114 | C176: 31.03757 | D176: 38.61357
A177: 2018-02-26 | B177: 69.58197 | C177: 30.71358 | D177: 38.86839
A178: 2018-02-26T12:00:00 | B178: 69.64512 | C178: 30.8399 | D178: 38.80522
A179: 2018-02-27 | B179: 69.66918 | C179: 30.95062 | D179: 38.71856
A180: 2018-02-27T12:00:00 | B180: 69.66016 | C180: 31.06299 | D180: 38.59717
A181: 2018-02-28 | B181: 69.63309 | C181: 31.00558 | D181: 38.62751
A182: 2018-02-28T12:00:00 | B182: 69.62708 | C182: 30.98835 | D182: 38.63873
A183: 2018-03-01 | B183: 69.597 | C183: 30.82267 | D183: 38.77433
A184: 2018-03-01T12:00:00 | B184: 69.58798 | C184: 30.62992 | D184: 38.95806
A185: 2018-03-02 | B185: 69.56091 | C185: 30.43061 | D185: 39.1303
A186: 2018-03-02T12:00:00 | B186: 69.65114 | C186: 30.70784 | D186: 38.9433
A187: 2018-03-03 | B187: 69.597 | C187: 30.72178 | D187: 38.87522
A188: 2018-03-03T12:00:00 | B188: 69.60603 | C188: 30.78494 | D188: 38.82109
A189: 2018-03-04 | B189: 69.58197 | C189: 30.84154 | D189: 38.74043
A190: 2018-03-04T12:00:00 | B190: 69.60001 | C190: 31.03428 | D190: 38.56573
A191: 2018-03-05 | B191: 69.597 | C191: 31.1729 | D191: 38.4241
A192: 2018-03-05T12:00:00 | B192: 69.597 | C192: 31.27461 | D192: 38.32239
A193: 2018-03-06 | B193: 69.597 | C193: 31.21555 | D193: 38.38145
A194: 2018-03-06T12:00:00 | B194: 69.60603 | C194: 31.25328 | D194: 38.35275
A195: 2018-03-07 | B195: 69.61806 | C195: 31.17864 | D195: 38.43942
A196: 2018-03-07T12:00:00 | B196: 69.60603 | C196: 31.11631 | D196: 38.48972
A197: 2018-03-08 | B197: 69.61505 | C197: 30.9252 | D197: 38.68985
A198: 2018-03-08T12:00:00 | B198: 69.65114 | C198: 30.88747 | D198: 38.76367
A199: 2018-03-09 | B199: 69.65114 | C199: 30.81283 | D199: 38.83831
A200: 2018-03-09T12:00:00 | B200: 69.6361 | C200: 30.82021 | D200: 38.81589
... 532 more rows

Sheet SVR #7
A1: SVR #7
A2: Date and Time (24-hour) | B2: Absolute Pressure Above Logger (feet of water) | C2: Barometric Pressure from On-Site Logger (feet of water) | D2: Barometric Compensation (feet of water)
A3: 2017-12-01 | B3: 121.9989 | C3: 31.14665 | D3: 90.85225
A4: 2017-12-01T12:00:00 | B4: 122.0341 | C4: 31.08596 | D4: 90.94814
A5: 2017-12-02 | B5: 122.0694 | C5: 30.97687 | D5: 91.09253
A6: 2017-12-02T12:00:00 | B6: 122.0106 | C6: 30.92192 | D6: 91.08868
A7: 2017-12-03 | B7: 121.9636 | C7: 30.68488 | D7: 91.27872
A8: 2017-12-03T12:00:00 | B8: 122.0106 | C8: 30.77428 | D8: 91.23632
A9: 2017-12-04 | B9: 122.0459 | C9: 31.14091 | D9: 90.90499
A10: 2017-12-04T12:00:00 | B10: 122.1399 | C10: 31.32628 | D10: 90.81362
A11: 2017-12-05 | B11: 122.1752 | C11: 31.39846 | D11: 90.77674
A12: 2017-12-05T12:00:00 | B12: 122.1752 | C12: 31.53789 | D12: 90.63731
A13: 2017-12-06 | B13: 122.2105 | C13: 31.55922 | D13: 90.65128
A14: 2017-12-06T12:00:00 | B14: 122.1752 | C14: 31.70194 | D14: 90.47326
A15: 2017-12-07 | B15: 122.234 | C15: 31.67897 | D15: 90.55503
A16: 2017-12-07T12:00:00 | B16: 122.2105 | C16: 31.70358 | D16: 90.50692
A17: 2017-12-08 | B17: 122.1987 | C17: 31.69209 | D17: 90.50661
A18: 2017-12-08T12:00:00 | B18: 122.1987 | C18: 31.69045 | D18: 90.50825
A19: 2017-12-09 | B19: 122.2692 | C19: 31.66913 | D19: 90.60007
A20: 2017-12-09T12:00:00 | B20: 122.3045 | C20: 31.68225 | D20: 90.62225
A21: 2017-12-10 | B21: 122.2692 | C21: 31.68471 | D21: 90.58449
A22: 2017-12-10T12:00:00 | B22: 122.3163 | C22: 31.67323 | D22: 90.64307
A23: 2017-12-11 | B23: 122.3163 | C23: 31.62238 | D23: 90.69392
A24: 2017-12-11T12:00:00 | B24: 122.3045 | C24: 31.6519 | D24: 90.6526
A25: 2017-12-12 | B25: 122.3868 | C25: 31.6396 | D25: 90.7472
A26: 2017-12-12T12:00:00 | B26: 122.3751 | C26: 31.61745 | D26: 90.75765
A27: 2017-12-13 | B27: 122.3868 | C27: 31.46325 | D27: 90.92355
A28: 2017-12-13T12:00:00 | B28: 122.4221 | C28: 31.37303 | D28: 91.04907
A29: 2017-12-14 | B29: 122.3868 | C29: 31.41732 | D29: 90.96948
A30: 2017-12-14T12:00:00 | B30: 122.4103 | C30: 31.52641 | D30: 90.88389
A31: 2017-12-15 | B31: 122.3868 | C31: 31.39272 | D31: 90.99408
A32: 2017-12-15T12:00:00 | B32: 122.4573 | C32: 31.22867 | D32: 91.22863
A33: 2017-12-16 | B33: 122.4221 | C33: 31.04331 | D33: 91.37879
A34: 2017-12-16T12:00:00 | B34: 122.4221 | C34: 31.04905 | D34: 91.37305
A35: 2017-12-17 | B35: 122.4103 | C35: 31.14091 | D35: 91.26939
A36: 2017-12-17T12:00:00 | B36: 122.4573 | C36: 31.18684 | D36: 91.27046
A37: 2017-12-18 | B37: 122.4573 | C37: 31.15978 | D37: 91.29752
A38: 2017-12-18T12:00:00 | B38: 122.4456 | C38: 31.15075 | D38: 91.29485
A39: 2017-12-19 | B39: 122.4103 | C39: 31.06627 | D39: 91.34403
A40: 2017-12-19T12:00:00 | B40: 122.3751 | C40: 30.89075 | D40: 91.48435
A41: 2017-12-20 | B41: 122.3868 | C41: 30.58481 | D41: 91.80199
A42: 2017-12-20T12:00:00 | B42: 122.4103 | C42: 30.89075 | D42: 91.51955
A43: 2017-12-21 | B43: 122.4691 | C43: 31.10072 | D43: 91.36838
A44: 2017-12-21T12:00:00 | B44: 122.4103 | C44: 31.26722 | D44: 91.14308
A45: 2017-12-22 | B45: 122.3751 | C45: 31.16388 | D45: 91.21122
A46: 2017-12-22T12:00:00 | B46: 122.4221 | C46: 31.09334 | D46: 91.32876
A47: 2017-12-23 | B47: 122.3515 | C47: 31.07448 | D47: 91.27702
A48: 2017-12-23T12:00:00 | B48: 122.3398 | C48: 31.20407 | D48: 91.13573
A49: 2017-12-24 | B49: 122.3751 | C49: 31.38862 | D49: 90.98648
A50: 2017-12-24T12:00:00 | B50: 122.3163 | C50: 31.30331 | D50: 91.01299
A51: 2017-12-25 | B51: 122.3398 | C51: 31.13927 | D51: 91.20053
A52: 2017-12-25T12:00:00 | B52: 122.3751 | C52: 31.12943 | D52: 91.24567
A53: 2017-12-26 | B53: 122.3751 | C53: 31.18274 | D53: 91.19236
A54: 2017-12-26T12:00:00 | B54: 122.3398 | C54: 31.27461 | D54: 91.06519
A55: 2017-12-27 | B55: 122.3398 | C55: 31.22129 | D55: 91.11851
A56: 2017-12-27T12:00:00 | B56: 122.3398 | C56: 31.26148 | D56: 91.07832
A57: 2017-12-28 | B57: 122.3515 | C57: 31.27625 | D57: 91.07525
A58: 2017-12-28T12:00:00 | B58: 122.3515 | C58: 31.22867 | D58: 91.12283
A59: 2017-12-29 | B59: 122.3163 | C59: 31.08596 | D59: 91.23034
A60: 2017-12-29T12:00:00 | B60: 122.3398 | C60: 31.0835 | D60: 91.2563
A61: 2017-12-30 | B61: 122.3045 | C61: 30.93094 | D61: 91.37356
A62: 2017-12-30T12:00:00 | B62: 122.3398 | C62: 31.07448 | D62: 91.26532
A63: 2017-12-31 | B63: 122.3398 | C63: 31.17536 | D63: 91.16444
A64: 2017-12-31T12:00:00 | B64: 122.3751 | C64: 31.27051 | D64: 91.10459
A65: 2018-01-01 | B65: 122.3398 | C65: 31.26886 | D65: 91.07094
A66: 2018-01-01T12:00:00 | B66: 122.3398 | C66: 31.36975 | D66: 90.97005
A67: 2018-01-02 | B67: 122.3868 | C67: 31.4001 | D67: 90.9867
A68: 2018-01-02T12:00:00 | B68: 122.4103 | C68: 31.4936 | D68: 90.9167
A69: 2018-01-03 | B69: 122.3868 | C69: 31.36729 | D69: 91.01951
A70: 2018-01-03T12:00:00 | B70: 122.3045 | C70: 31.26722 | D70: 91.03728
A71: 2018-01-04 | B71: 122.3398 | C71: 31.19997 | D71: 91.13983
A72: 2018-01-04T12:00:00 | B72: 122.3868 | C72: 31.1729 | D72: 91.2139
A73: 2018-01-05 | B73: 122.3751 | C73: 31.15404 | D73: 91.22106
A74: 2018-01-05T12:00:00 | B74: 122.3868 | C74: 31.177 | D74: 91.2098
A75: 2018-01-06 | B75: 122.3868 | C75: 31.08596 | D75: 91.30084
A76: 2018-01-06T12:00:00 | B76: 122.3751 | C76: 31.1081 | D76: 91.267
A77: 2018-01-07 | B77: 122.3515 | C77: 31.12369 | D77: 91.22781
A78: 2018-01-07T12:00:00 | B78: 122.3868 | C78: 31.12779 | D78: 91.25901
A79: 2018-01-08 | B79: 122.3398 | C79: 30.98835 | D79: 91.35145
A80: 2018-01-08T12:00:00 | B80: 122.3868 | C80: 30.87352 | D80: 91.51328
A81: 2018-01-09 | B81: 122.3751 | C81: 30.69636 | D81: 91.67874
A82: 2018-01-09T12:00:00 | B82: 122.3515 | C82: 30.53396 | D82: 91.81754
A83: 2018-01-10 | B83: 122.3515 | C83: 30.56759 | D83: 91.78391
A84: 2018-01-10T12:00:00 | B84: 122.3868 | C84: 30.87927 | D84: 91.50753
A85: 2018-01-11 | B85: 122.3398 | C85: 31.02608 | D85: 91.31372
A86: 2018-01-11T12:00:00 | B86: 122.3163 | C86: 30.98835 | D86: 91.32795
A87: 2018-01-12 | B87: 122.3515 | C87: 30.96539 | D87: 91.38611
A88: 2018-01-12T12:00:00 | B88: 122.3515 | C88: 31.27461 | D88: 91.07689
A89: 2018-01-13 | B89: 122.3515 | C89: 31.34268 | D89: 91.00882
A90: 2018-01-13T12:00:00 | B90: 122.3045 | C90: 31.41732 | D90: 90.88718
A91: 2018-01-14 | B91: 122.3398 | C91: 31.4001 | D91: 90.9397
A92: 2018-01-14T12:00:00 | B92: 122.3045 | C92: 31.35991 | D92: 90.94459
A93: 2018-01-15 | B93: 122.3515 | C93: 31.2459 | D93: 91.1056
A94: 2018-01-15T12:00:00 | B94: 122.3163 | C94: 31.23442 | D94: 91.08188
A95: 2018-01-16 | B95: 122.3751 | C95: 31.12533 | D95: 91.24977
A96: 2018-01-16T12:00:00 | B96: 122.3398 | C96: 31.26312 | D96: 91.07668
A97: 2018-01-17 | B97: 122.3751 | C97: 31.26886 | D97: 91.10624
A98: 2018-01-17T12:00:00 | B98: 122.4103 | C98: 31.28609 | D98: 91.12421
A99: 2018-01-18 | B99: 122.4103 | C99: 31.00558 | D99: 91.40472
A100: 2018-01-18T12:00:00 | B100: 122.3163 | C100: 30.75951 | D100: 91.55679
A101: 2018-01-19 | B101: 122.4103 | C101: 30.72507 | D101: 91.68523
A102: 2018-01-19T12:00:00 | B102: 122.4338 | C102: 30.84482 | D102: 91.58898
A103: 2018-01-20 | B103: 122.3868 | C103: 30.90797 | D103: 91.47883
A104: 2018-01-20T12:00:00 | B104: 122.3751 | C104: 30.97113 | D104: 91.40397
A105: 2018-01-21 | B105: 122.4456 | C105: 31.05725 | D105: 91.38835
A106: 2018-01-21T12:00:00 | B106: 122.3868 | C106: 31.14255 | D106: 91.24425
A107: 2018-01-22 | B107: 122.3751 | C107: 31.08596 | D107: 91.28914
A108: 2018-01-22T12:00:00 | B108: 122.3751 | C108: 31.14255 | D108: 91.23255
A109: 2018-01-23 | B109: 122.3751 | C109: 31.23442 | D109: 91.14068
A110: 2018-01-23T12:00:00 | B110: 122.3163 | C110: 31.19423 | D110: 91.12207
A111: 2018-01-24 | B111: 122.3045 | C111: 30.99409 | D111: 91.31041
A112: 2018-01-24T12:00:00 | B112: 122.3398 | C112: 30.83415 | D112: 91.50565
A113: 2018-01-25 | B113: 122.3045 | C113: 30.63894 | D113: 91.66556
A114: 2018-01-25T12:00:00 | B114: 122.3751 | C114: 30.72835 | D114: 91.64675
A115: 2018-01-26 | B115: 122.3515 | C115: 30.90223 | D115: 91.44927
A116: 2018-01-26T12:00:00 | B116: 122.3751 | C116: 31.13681 | D116: 91.23829
A117: 2018-01-27 | B117: 122.3751 | C117: 31.14829 | D117: 91.22681
A118: 2018-01-27T12:00:00 | B118: 122.3515 | C118: 31.20161 | D118: 91.14989
A119: 2018-01-28 | B119: 122.3398 | C119: 31.31234 | D119: 91.02746
A120: 2018-01-28T12:00:00 | B120: 122.3398 | C120: 31.45751 | D120: 90.88229
A121: 2018-01-29 | B121: 122.3515 | C121: 31.40584 | D121: 90.94566
A122: 2018-01-29T12:00:00 | B122: 122.2692 | C122: 31.27461 | D122: 90.99459
A123: 2018-01-30 | B123: 122.3045 | C123: 30.95636 | D123: 91.34814
A124: 2018-01-30T12:00:00 | B124: 122.3515 | C124: 30.87352 | D124: 91.47798
A125: 2018-01-31 | B125: 122.3398 | C125: 31.02854 | D125: 91.31126
A126: 2018-01-31T12:00:00 | B126: 122.3398 | C126: 31.09334 | D126: 91.24646
A127: 2018-02-01 | B127: 122.3868 | C127: 31.11795 | D127: 91.26885
A128: 2018-02-01T12:00:00 | B128: 122.4221 | C128: 31.19012 | D128: 91.23198
A129: 2018-02-02 | B129: 122.3398 | C129: 31.15978 | D129: 91.18002
A130: 2018-02-02T12:00:00 | B130: 122.4103 | C130: 31.18848 | D130: 91.22182
A131: 2018-02-03 | B131: 122.3868 | C131: 31.1081 | D131: 91.2787
A132: 2018-02-03T12:00:00 | B132: 122.3751 | C132: 31.11385 | D132: 91.26125
A133: 2018-02-04 | B133: 122.3751 | C133: 31.09662 | D133: 91.27848
A134: 2018-02-04T12:00:00 | B134: 122.3868 | C134: 31.06873 | D134: 91.31807
A135: 2018-02-05 | B135: 122.3398 | C135: 30.94488 | D135: 91.39492
A136: 2018-02-05T12:00:00 | B136: 122.3515 | C136: 30.96539 | D136: 91.38611
A137: 2018-02-06 | B137: 122.3515 | C137: 30.96211 | D137: 91.38939
A138: 2018-02-06T12:00:00 | B138: 122.3868 | C138: 31.18274 | D138: 91.20406
A139: 2018-02-07 | B139: 122.4221 | C139: 31.2459 | D139: 91.1762
A140: 2018-02-07T12:00:00 | B140: 122.4221 | C140: 31.32054 | D140: 91.10156
A141: 2018-02-08 | B141: 122.3868 | C141: 31.24754 | D141: 91.13926
A142: 2018-02-08T12:00:00 | B142: 122.3868 | C142: 31.1081 | D142: 91.2787
A143: 2018-02-09 | B143: 122.3515 | C143: 30.92766 | D143: 91.42384
A144: 2018-02-09T12:00:00 | B144: 122.3868 | C144: 30.97933 | D144: 91.40747
A145: 2018-02-10 | B145: 122.3398 | C145: 30.88173 | D145: 91.45807
A146: 2018-02-10T12:00:00 | B146: 122.3751 | C146: 31.11385 | D146: 91.26125
A147: 2018-02-11 | B147: 122.3398 | C147: 31.05151 | D147: 91.28829
A148: 2018-02-11T12:00:00 | B148: 122.3398 | C148: 30.69062 | D148: 91.64918
A149: 2018-02-12 | B149: 122.3163 | C149: 30.6332 | D149: 91.6831
A150: 2018-02-12T12:00:00 | B150: 122.3398 | C150: 30.81857 | D150: 91.52123
A151: 2018-02-13 | B151: 122.3515 | C151: 31.08022 | D151: 91.27128
A152: 2018-02-13T12:00:00 | B152: 122.3398 | C152: 31.25738 | D152: 91.08242
A153: 2018-02-14 | B153: 122.3045 | C153: 31.05151 | D153: 91.25299
A154: 2018-02-14T12:00:00 | B154: 122.3398 | C154: 30.88501 | D154: 91.45479
A155: 2018-02-15 | B155: 122.2692 | C155: 30.98835 | D155: 91.28085
A156: 2018-02-15T12:00:00 | B156: 122.3398 | C156: 31.28773 | D156: 91.05207
A157: 2018-02-16 | B157: 122.3163 | C157: 31.32382 | D157: 90.99248
A158: 2018-02-16T12:00:00 | B158: 122.3045 | C158: 31.18274 | D158: 91.12176
A159: 2018-02-17 | B159: 122.3045 | C159: 31.09334 | D159: 91.21116
A160: 2018-02-17T12:00:00 | B160: 122.234 | C160: 30.89649 | D160: 91.33751
A161: 2018-02-18 | B161: 122.234 | C161: 30.51345 | D161: 91.72055
A162: 2018-02-18T12:00:00 | B162: 122.2692 | C162: 30.4872 | D162: 91.782
A163: 2018-02-19 | B163: 122.3045 | C163: 30.53314 | D163: 91.77136
A164: 2018-02-19T12:00:00 | B164: 122.3045 | C164: 30.70784 | D164: 91.59666
A165: 2018-02-20 | B165: 122.3045 | C165: 30.93914 | D165: 91.36536
A166: 2018-02-20T12:00:00 | B166: 122.3045 | C166: 31.10482 | D166: 91.19968
A167: 2018-02-21 | B167: 122.2692 | C167: 31.08022 | D167: 91.18898
A168: 2018-02-21T12:00:00 | B168: 122.281 | C168: 31.10482 | D168: 91.17618
A169: 2018-02-22 | B169: 122.1987 | C169: 30.92848 | D169: 91.27022
A170: 2018-02-22T12:00:00 | B170: 122.2692 | C170: 30.9334 | D170: 91.3358
A171: 2018-02-23 | B171: 122.234 | C171: 31.05151 | D171: 91.18249
A172: 2018-02-23T12:00:00 | B172: 122.2692 | C172: 31.23852 | D172: 91.03068
A173: 2018-02-24 | B173: 122.2692 | C173: 31.12533 | D173: 91.14387
A174: 2018-02-24T12:00:00 | B174: 122.1987 | C174: 30.85302 | D174: 91.34568
A175: 2018-02-25 | B175: 122.281 | C175: 31.05315 | D175: 91.22785
A176: 2018-02-25T12:00:00 | B176: 122.281 | C176: 31.03757 | D176: 91.24343
A177: 2018-02-26 | B177: 122.234 | C177: 30.71358 | D177: 91.52042
A178: 2018-02-26T12:00:00 | B178: 122.2692 | C178: 30.8399 | D178: 91.4293
A179: 2018-02-27 | B179: 122.2692 | C179: 30.95062 | D179: 91.31858
A180: 2018-02-27T12:00:00 | B180: 122.281 | C180: 31.06299 | D180: 91.21801
A181: 2018-02-28 | B181: 122.2457 | C181: 31.00558 | D181: 91.24012
A182: 2018-02-28T12:00:00 | B182: 122.1987 | C182: 30.98835 | D182: 91.21035
A183: 2018-03-01 | B183: 122.234 | C183: 30.82267 | D183: 91.41133
A184: 2018-03-01T12:00:00 | B184: 122.1987 | C184: 30.62992 | D184: 91.56878
A185: 2018-03-02 | B185: 122.1987 | C185: 30.43061 | D185: 91.76809
A186: 2018-03-02T12:00:00 | B186: 122.2457 | C186: 30.70784 | D186: 91.53786
A187: 2018-03-03 | B187: 122.1987 | C187: 30.72178 | D187: 91.47692
A188: 2018-03-03T12:00:00 | B188: 122.234 | C188: 30.78494 | D188: 91.44906
A189: 2018-03-04 | B189: 122.2105 | C189: 30.84154 | D189: 91.36896
A190: 2018-03-04T12:00:00 | B190: 122.234 | C190: 31.03428 | D190: 91.19972
A191: 2018-03-05 | B191: 122.1752 | C191: 31.1729 | D191: 91.0023
A192: 2018-03-05T12:00:00 | B192: 122.1987 | C192: 31.27461 | D192: 90.92409
A193: 2018-03-06 | B193: 122.1752 | C193: 31.21555 | D193: 90.95965
A194: 2018-03-06T12:00:00 | B194: 122.2105 | C194: 31.25328 | D194: 90.95722
A195: 2018-03-07 | B195: 122.1987 | C195: 31.17864 | D195: 91.02006
A196: 2018-03-07T12:00:00 | B196: 122.1987 | C196: 31.11631 | D196: 91.08239
A197: 2018-03-08 | B197: 122.2105 | C197: 30.9252 | D197: 91.2853
A198: 2018-03-08T12:00:00 | B198: 122.1987 | C198: 30.88747 | D198: 91.31123
A199: 2018-03-09 | B199: 122.2457 | C199: 30.81283 | D199: 91.43287
A200: 2018-03-09T12:00:00 | B200: 122.1987 | C200: 30.82021 | D200: 91.37849
... 479 more rows

Sheet SVR #9
A1: SVR #9
A2: Date and Time (24-hour) | B2: Absolute Pressure Above Logger (feet of water) | C2: Barometric Pressure from On-Site Logger (feet of water) | D2: Barometric Compensation (feet of water)
A3: 2017-12-01 | B3: 79.48545 | C3: 31.14665 | D3: 48.3388
A4: 2017-12-01T12:00:00 | B4: 79.49748 | C4: 31.08596 | D4: 48.41152
A5: 2017-12-02 | B5: 79.50651 | C5: 30.97687 | D5: 48.52964
A6: 2017-12-02T12:00:00 | B6: 79.51553 | C6: 30.92192 | D6: 48.59361
A7: 2017-12-03 | B7: 79.50651 | C7: 30.68488 | D7: 48.82163
A8: 2017-12-03T12:00:00 | B8: 79.50651 | C8: 30.77428 | D8: 48.73223
A9: 2017-12-04 | B9: 79.50651 | C9: 31.14091 | D9: 48.3656
A10: 2017-12-04T12:00:00 | B10: 79.5035 | C10: 31.32628 | D10: 48.17722
A11: 2017-12-05 | B11: 79.51553 | C11: 31.39846 | D11: 48.11707
A12: 2017-12-05T12:00:00 | B12: 79.53057 | C12: 31.53789 | D12: 47.99268
A13: 2017-12-06 | B13: 79.5426 | C13: 31.55922 | D13: 47.98338
A14: 2017-12-06T12:00:00 | B14: 79.56064 | C14: 31.70194 | D14: 47.8587
A15: 2017-12-07 | B15: 79.59673 | C15: 31.67897 | D15: 47.91776
A16: 2017-12-07T12:00:00 | B16: 79.62079 | C16: 31.70358 | D16: 47.91721
A17: 2017-12-08 | B17: 79.65086 | C17: 31.69209 | D17: 47.95877
A18: 2017-12-08T12:00:00 | B18: 79.6659 | C18: 31.69045 | D18: 47.97545
A19: 2017-12-09 | B19: 79.71101 | C19: 31.66913 | D19: 48.04188
A20: 2017-12-09T12:00:00 | B20: 79.73206 | C20: 31.68225 | D20: 48.04981
A21: 2017-12-10 | B21: 79.7471 | C21: 31.68471 | D21: 48.06239
A22: 2017-12-10T12:00:00 | B22: 79.78319 | C22: 31.67323 | D22: 48.10996
A23: 2017-12-11 | B23: 79.80424 | C23: 31.62238 | D23: 48.18186
A24: 2017-12-11T12:00:00 | B24: 79.81928 | C24: 31.6519 | D24: 48.16738
A25: 2017-12-12 | B25: 79.8674 | C25: 31.6396 | D25: 48.2278
A26: 2017-12-12T12:00:00 | B26: 79.89447 | C26: 31.61745 | D26: 48.27702
A27: 2017-12-13 | B27: 79.90048 | C27: 31.46325 | D27: 48.43723
A28: 2017-12-13T12:00:00 | B28: 79.91853 | C28: 31.37303 | D28: 48.5455
A29: 2017-12-14 | B29: 79.93657 | C29: 31.41732 | D29: 48.51925
A30: 2017-12-14T12:00:00 | B30: 79.93958 | C30: 31.52641 | D30: 48.41317
A31: 2017-12-15 | B31: 79.93657 | C31: 31.39272 | D31: 48.54385
A32: 2017-12-15T12:00:00 | B32: 79.95762 | C32: 31.22867 | D32: 48.72895
A33: 2017-12-16 | B33: 79.95462 | C33: 31.04331 | D33: 48.91131
A34: 2017-12-16T12:00:00 | B34: 79.9486 | C34: 31.04905 | D34: 48.89955
A35: 2017-12-17 | B35: 79.93056 | C35: 31.14091 | D35: 48.78965
A36: 2017-12-17T12:00:00 | B36: 79.91853 | C36: 31.18684 | D36: 48.73169
A37: 2017-12-18 | B37: 79.91853 | C37: 31.15978 | D37: 48.75875
A38: 2017-12-18T12:00:00 | B38: 79.91853 | C38: 31.15075 | D38: 48.76778
A39: 2017-12-19 | B39: 79.90048 | C39: 31.06627 | D39: 48.83421
A40: 2017-12-19T12:00:00 | B40: 79.89146 | C40: 30.89075 | D40: 49.00071
A41: 2017-12-20 | B41: 79.88244 | C41: 30.58481 | D41: 49.29763
A42: 2017-12-20T12:00:00 | B42: 79.85537 | C42: 30.89075 | D42: 48.96462
A43: 2017-12-21 | B43: 79.83733 | C43: 31.10072 | D43: 48.73661
A44: 2017-12-21T12:00:00 | B44: 79.8283 | C44: 31.26722 | D44: 48.56108
A45: 2017-12-22 | B45: 79.81928 | C45: 31.16388 | D45: 48.6554
A46: 2017-12-22T12:00:00 | B46: 79.82229 | C46: 31.09334 | D46: 48.72895
A47: 2017-12-23 | B47: 79.81026 | C47: 31.07448 | D47: 48.73578
A48: 2017-12-23T12:00:00 | B48: 79.81327 | C48: 31.20407 | D48: 48.6092
A49: 2017-12-24 | B49: 79.81327 | C49: 31.38862 | D49: 48.42465
A50: 2017-12-24T12:00:00 | B50: 79.81327 | C50: 31.30331 | D50: 48.50996
A51: 2017-12-25 | B51: 79.81928 | C51: 31.13927 | D51: 48.68001
A52: 2017-12-25T12:00:00 | B52: 79.81928 | C52: 31.12943 | D52: 48.68985
A53: 2017-12-26 | B53: 79.8283 | C53: 31.18274 | D53: 48.64556
A54: 2017-12-26T12:00:00 | B54: 79.83131 | C54: 31.27461 | D54: 48.5567
A55: 2017-12-27 | B55: 79.81928 | C55: 31.22129 | D55: 48.59799
A56: 2017-12-27T12:00:00 | B56: 79.81928 | C56: 31.26148 | D56: 48.5578
A57: 2017-12-28 | B57: 79.8283 | C57: 31.27625 | D57: 48.55205
A58: 2017-12-28T12:00:00 | B58: 79.83131 | C58: 31.22867 | D58: 48.60264
A59: 2017-12-29 | B59: 79.83733 | C59: 31.08596 | D59: 48.75137
A60: 2017-12-29T12:00:00 | B60: 79.83733 | C60: 31.0835 | D60: 48.75383
A61: 2017-12-30 | B61: 79.8283 | C61: 30.93094 | D61: 48.89736
A62: 2017-12-30T12:00:00 | B62: 79.83131 | C62: 31.07448 | D62: 48.75683
A63: 2017-12-31 | B63: 79.8283 | C63: 31.17536 | D63: 48.65294
A64: 2017-12-31T12:00:00 | B64: 79.8283 | C64: 31.27051 | D64: 48.55779
A65: 2018-01-01 | B65: 79.83131 | C65: 31.26886 | D65: 48.56245
A66: 2018-01-01T12:00:00 | B66: 79.83733 | C66: 31.36975 | D66: 48.46758
A67: 2018-01-02 | B67: 79.83733 | C67: 31.4001 | D67: 48.43723
A68: 2018-01-02T12:00:00 | B68: 79.84935 | C68: 31.4936 | D68: 48.35575
A69: 2018-01-03 | B69: 79.86439 | C69: 31.36729 | D69: 48.4971
A70: 2018-01-03T12:00:00 | B70: 79.87341 | C70: 31.26722 | D70: 48.60619
A71: 2018-01-04 | B71: 79.88244 | C71: 31.19997 | D71: 48.68247
A72: 2018-01-04T12:00:00 | B72: 79.88544 | C72: 31.1729 | D72: 48.71254
A73: 2018-01-05 | B73: 80.20724 | C73: 31.15404 | D73: 49.0532
A74: 2018-01-05T12:00:00 | B74: 80.20724 | C74: 31.177 | D74: 49.03024
A75: 2018-01-06 | B75: 80.21025 | C75: 31.08596 | D75: 49.12429
A76: 2018-01-06T12:00:00 | B76: 80.20724 | C76: 31.1081 | D76: 49.09914
A77: 2018-01-07 | B77: 80.20724 | C77: 31.12369 | D77: 49.08355
A78: 2018-01-07T12:00:00 | B78: 80.20122 | C78: 31.12779 | D78: 49.07343
A79: 2018-01-08 | B79: 80.19822 | C79: 30.98835 | D79: 49.20987
A80: 2018-01-08T12:00:00 | B80: 80.19822 | C80: 30.87352 | D80: 49.3247
A81: 2018-01-09 | B81: 80.20122 | C81: 30.69636 | D81: 49.50486
A82: 2018-01-09T12:00:00 | B82: 80.17416 | C82: 30.53396 | D82: 49.6402
A83: 2018-01-10 | B83: 80.16213 | C83: 30.56759 | D83: 49.59454
A84: 2018-01-10T12:00:00 | B84: 80.14408 | C84: 30.87927 | D84: 49.26481
A85: 2018-01-11 | B85: 80.11702 | C85: 31.02608 | D85: 49.09094
A86: 2018-01-11T12:00:00 | B86: 80.10799 | C86: 30.98835 | D86: 49.11964
A87: 2018-01-12 | B87: 80.09897 | C87: 30.96539 | D87: 49.13358
A88: 2018-01-12T12:00:00 | B88: 80.09296 | C88: 31.27461 | D88: 48.81835
A89: 2018-01-13 | B89: 80.09897 | C89: 31.34268 | D89: 48.75629
A90: 2018-01-13T12:00:00 | B90: 80.111 | C90: 31.41732 | D90: 48.69368
A91: 2018-01-14 | B91: 80.12002 | C91: 31.4001 | D91: 48.71992
A92: 2018-01-14T12:00:00 | B92: 80.14709 | C92: 31.35991 | D92: 48.78718
A93: 2018-01-15 | B93: 80.15311 | C93: 31.2459 | D93: 48.90721
A94: 2018-01-15T12:00:00 | B94: 80.16213 | C94: 31.23442 | D94: 48.92771
A95: 2018-01-16 | B95: 80.18318 | C95: 31.12533 | D95: 49.05785
A96: 2018-01-16T12:00:00 | B96: 80.18017 | C96: 31.26312 | D96: 48.91705
A97: 2018-01-17 | B97: 80.1922 | C97: 31.26886 | D97: 48.92334
A98: 2018-01-17T12:00:00 | B98: 80.19822 | C98: 31.28609 | D98: 48.91213
A99: 2018-01-18 | B99: 80.21626 | C99: 31.00558 | D99: 49.21068
A100: 2018-01-18T12:00:00 | B100: 80.21927 | C100: 30.75951 | D100: 49.45976
A101: 2018-01-19 | B101: 80.22528 | C101: 30.72507 | D101: 49.50021
A102: 2018-01-19T12:00:00 | B102: 80.20122 | C102: 30.84482 | D102: 49.3564
A103: 2018-01-20 | B103: 80.1892 | C103: 30.90797 | D103: 49.28123
A104: 2018-01-20T12:00:00 | B104: 80.17115 | C104: 30.97113 | D104: 49.20002
A105: 2018-01-21 | B105: 80.17416 | C105: 31.05725 | D105: 49.11691
A106: 2018-01-21T12:00:00 | B106: 80.16213 | C106: 31.14255 | D106: 49.01958
A107: 2018-01-22 | B107: 80.16514 | C107: 31.08596 | D107: 49.07918
A108: 2018-01-22T12:00:00 | B108: 80.17416 | C108: 31.14255 | D108: 49.03161
A109: 2018-01-23 | B109: 80.17115 | C109: 31.23442 | D109: 48.93673
A110: 2018-01-23T12:00:00 | B110: 80.17416 | C110: 31.19423 | D110: 48.97993
A111: 2018-01-24 | B111: 80.18318 | C111: 30.99409 | D111: 49.18909
A112: 2018-01-24T12:00:00 | B112: 80.1892 | C112: 30.83415 | D112: 49.35505
A113: 2018-01-25 | B113: 80.18017 | C113: 30.63894 | D113: 49.54123
A114: 2018-01-25T12:00:00 | B114: 80.18017 | C114: 30.72835 | D114: 49.45182
A115: 2018-01-26 | B115: 80.17416 | C115: 30.90223 | D115: 49.27193
A116: 2018-01-26T12:00:00 | B116: 80.15611 | C116: 31.13681 | D116: 49.0193
A117: 2018-01-27 | B117: 80.14709 | C117: 31.14829 | D117: 48.9988
A118: 2018-01-27T12:00:00 | B118: 80.15611 | C118: 31.20161 | D118: 48.9545
A119: 2018-01-28 | B119: 80.15611 | C119: 31.31234 | D119: 48.84377
A120: 2018-01-28T12:00:00 | B120: 80.16213 | C120: 31.45751 | D120: 48.70462
A121: 2018-01-29 | B121: 80.18318 | C121: 31.40584 | D121: 48.77734
A122: 2018-01-29T12:00:00 | B122: 80.1892 | C122: 31.27461 | D122: 48.91459
A123: 2018-01-30 | B123: 80.20724 | C123: 30.95636 | D123: 49.25088
A124: 2018-01-30T12:00:00 | B124: 80.21025 | C124: 30.87352 | D124: 49.33673
A125: 2018-01-31 | B125: 80.22829 | C125: 31.02854 | D125: 49.19975
A126: 2018-01-31T12:00:00 | B126: 80.21626 | C126: 31.09334 | D126: 49.12292
A127: 2018-02-01 | B127: 80.21927 | C127: 31.11795 | D127: 49.10132
A128: 2018-02-01T12:00:00 | B128: 80.22528 | C128: 31.19012 | D128: 49.03516
A129: 2018-02-02 | B129: 80.21927 | C129: 31.15978 | D129: 49.05949
A130: 2018-02-02T12:00:00 | B130: 80.22528 | C130: 31.18848 | D130: 49.0368
A131: 2018-02-03 | B131: 80.23431 | C131: 31.1081 | D131: 49.12621
A132: 2018-02-03T12:00:00 | B132: 80.24634 | C132: 31.11385 | D132: 49.13249
A133: 2018-02-04 | B133: 80.24634 | C133: 31.09662 | D133: 49.14972
A134: 2018-02-04T12:00:00 | B134: 80.24333 | C134: 31.06873 | D134: 49.1746
A135: 2018-02-05 | B135: 80.25536 | C135: 30.94488 | D135: 49.31048
A136: 2018-02-05T12:00:00 | B136: 80.24333 | C136: 30.96539 | D136: 49.27794
A137: 2018-02-06 | B137: 80.24634 | C137: 30.96211 | D137: 49.28423
A138: 2018-02-06T12:00:00 | B138: 80.24634 | C138: 31.18274 | D138: 49.0636
A139: 2018-02-07 | B139: 80.24333 | C139: 31.2459 | D139: 48.99743
A140: 2018-02-07T12:00:00 | B140: 80.24634 | C140: 31.32054 | D140: 48.9258
A141: 2018-02-08 | B141: 80.25536 | C141: 31.24754 | D141: 49.00782
A142: 2018-02-08T12:00:00 | B142: 80.26137 | C142: 31.1081 | D142: 49.15327
A143: 2018-02-09 | B143: 80.26137 | C143: 30.92766 | D143: 49.33371
A144: 2018-02-09T12:00:00 | B144: 80.2704 | C144: 30.97933 | D144: 49.29107
A145: 2018-02-10 | B145: 80.2704 | C145: 30.88173 | D145: 49.38867
A146: 2018-02-10T12:00:00 | B146: 80.26438 | C146: 31.11385 | D146: 49.15053
A147: 2018-02-11 | B147: 80.25235 | C147: 31.05151 | D147: 49.20084
A148: 2018-02-11T12:00:00 | B148: 80.25536 | C148: 30.69062 | D148: 49.56474
A149: 2018-02-12 | B149: 80.24333 | C149: 30.6332 | D149: 49.61013
A150: 2018-02-12T12:00:00 | B150: 80.24333 | C150: 30.81857 | D150: 49.42476
A151: 2018-02-13 | B151: 80.22528 | C151: 31.08022 | D151: 49.14506
A152: 2018-02-13T12:00:00 | B152: 80.21626 | C152: 31.25738 | D152: 48.95888
A153: 2018-02-14 | B153: 80.22829 | C153: 31.05151 | D153: 49.17678
A154: 2018-02-14T12:00:00 | B154: 80.22528 | C154: 30.91946 | D154: 49.30582
A155: 2018-02-15 | B155: 80.22528 | C155: 30.98835 | D155: 49.23693
A156: 2018-02-15T12:00:00 | B156: 80.22528 | C156: 31.28773 | D156: 48.93755
A157: 2018-02-16 | B157: 80.23431 | C157: 31.32382 | D157: 48.91049
A158: 2018-02-16T12:00:00 | B158: 80.24634 | C158: 31.18274 | D158: 49.0636
A159: 2018-02-17 | B159: 80.25536 | C159: 31.09334 | D159: 49.16202
A160: 2018-02-17T12:00:00 | B160: 80.25536 | C160: 30.89649 | D160: 49.35887
A161: 2018-02-18 | B161: 80.25235 | C161: 30.51345 | D161: 49.7389
A162: 2018-02-18T12:00:00 | B162: 80.24333 | C162: 30.4872 | D162: 49.75613
A163: 2018-02-19 | B163: 80.22528 | C163: 30.53314 | D163: 49.69214
A164: 2018-02-19T12:00:00 | B164: 80.20724 | C164: 30.70784 | D164: 49.4994
A165: 2018-02-20 | B165: 80.1892 | C165: 30.93914 | D165: 49.25006
A166: 2018-02-20T12:00:00 | B166: 80.18017 | C166: 31.10482 | D166: 49.07535
A167: 2018-02-21 | B167: 80.17416 | C167: 31.08022 | D167: 49.09394
A168: 2018-02-21T12:00:00 | B168: 80.18017 | C168: 31.10482 | D168: 49.07535
A169: 2018-02-22 | B169: 80.1892 | C169: 30.92848 | D169: 49.26072
A170: 2018-02-22T12:00:00 | B170: 80.19822 | C170: 30.9334 | D170: 49.26482
A171: 2018-02-23 | B171: 80.19822 | C171: 31.05151 | D171: 49.14671
A172: 2018-02-23T12:00:00 | B172: 80.19822 | C172: 31.23852 | D172: 48.9597
A173: 2018-02-24 | B173: 80.19822 | C173: 31.12533 | D173: 49.07289
A174: 2018-02-24T12:00:00 | B174: 80.20724 | C174: 30.85302 | D174: 49.35422
A175: 2018-02-25 | B175: 80.21626 | C175: 31.05315 | D175: 49.16311
A176: 2018-02-25T12:00:00 | B176: 80.22528 | C176: 31.03757 | D176: 49.18771
A177: 2018-02-26 | B177: 80.21927 | C177: 30.71358 | D177: 49.50569
A178: 2018-02-26T12:00:00 | B178: 80.22528 | C178: 30.8399 | D178: 49.38538
A179: 2018-02-27 | B179: 80.20724 | C179: 30.95062 | D179: 49.25662
A180: 2018-02-27T12:00:00 | B180: 80.21626 | C180: 31.06299 | D180: 49.15327
A181: 2018-02-28 | B181: 80.21626 | C181: 31.00558 | D181: 49.21068
A182: 2018-02-28T12:00:00 | B182: 80.20724 | C182: 30.98835 | D182: 49.21889
A183: 2018-03-01 | B183: 80.22528 | C183: 30.82267 | D183: 49.40261
A184: 2018-03-01T12:00:00 | B184: 80.21025 | C184: 30.62992 | D184: 49.58033
A185: 2018-03-02 | B185: 80.20724 | C185: 30.43061 | D185: 49.77663
A186: 2018-03-02T12:00:00 | B186: 80.1892 | C186: 30.70784 | D186: 49.48136
A187: 2018-03-03 | B187: 80.17115 | C187: 30.72178 | D187: 49.44937
A188: 2018-03-03T12:00:00 | B188: 80.16213 | C188: 30.78494 | D188: 49.37719
A189: 2018-03-04 | B189: 80.16514 | C189: 30.84154 | D189: 49.3236
A190: 2018-03-04T12:00:00 | B190: 80.16213 | C190: 31.03428 | D190: 49.12785
A191: 2018-03-05 | B191: 80.15311 | C191: 31.1729 | D191: 48.98021
A192: 2018-03-05T12:00:00 | B192: 80.16213 | C192: 31.27461 | D192: 48.88752
A193: 2018-03-06 | B193: 80.18017 | C193: 31.21555 | D193: 48.96462
A194: 2018-03-06T12:00:00 | B194: 80.1922 | C194: 31.25328 | D194: 48.93892
A195: 2018-03-07 | B195: 80.21626 | C195: 31.17864 | D195: 49.03762
A196: 2018-03-07T12:00:00 | B196: 80.22528 | C196: 31.11631 | D196: 49.10897
A197: 2018-03-08 | B197: 80.24333 | C197: 30.9252 | D197: 49.31813
A198: 2018-03-08T12:00:00 | B198: 80.26137 | C198: 30.88747 | D198: 49.3739
A199: 2018-03-09 | B199: 80.25536 | C199: 30.81283 | D199: 49.44253
A200: 2018-03-09T12:00:00 | B200: 80.24333 | C200: 30.82021 | D200: 49.42312
... 532 more rows
